Workbook

Sheet 기본사항
P3: 사용가이드
C5: 소득자 인적사항
C7: 성명 | G7: 이영화
C8: 주민등록번호 | G8: 123456-1234567
C9: 주소 | G9: 서울 중구 다산로11길 25
C10: 귀속연도 | G10: 2019
C12: 원천징수의무자 인적사항
C14: 상호 | G14: (주)조세통람
C15: 대표자성명 | G15: 김철수
C16: 사업자등록번호 | G16: 203-81-11111
C17: 주민등록번호 | G17: 123456-1234567
C18: 사업장주소 | G18: 서울 중구 동호로14길 5-6
C19: 신고년월일 | G19: 2020-02-28
C20: 관할세무서 | G20: 중부세무서장
P22: 최신세무·회계·법령서비스
P23: http://www.taxnet.co.kr/

Sheet 신고서
B2: ■ 소득세법 시행규칙[별지 제37호서식(1)] <개정(안) 2019. 12. 31.> | AU2: (8쪽 중 제1쪽)
B3: 소득ㆍ세액 공제신고서/근로소득자 소득ㆍ세액 공제신고서 ( 2019년 소득에 대한 연말정산용)
B4: ※ 근로소득자는 신고서에 소득ㆍ세액 공제 증명서류를 첨부하여 원천징수의무자(소속 회사 등)에게 제출하며, 원천징수의무자는 신고서 및 첨부서류를 확인하여 근로소득 세액계산을 하고 근로소득자에게 즉시 근로소득원천징수영수증을 발급해야 합니다. 연말정산 시 근로소득자에게 환급이 발생하는 경우 원천징수의무자는 근로소득자에게 환급세액을 지급해야 합니다.
B5: 소득자 성명 | I5: =기본사항!G7 -> 이영화 | Y5: 주민등록번호 | AH5: =기본사항!G8 -> 123456-1234567
B6: 근무처 명칭 | I6: =기본사항!G14 -> (주)조세통람 | Y6: 사업자등록번호 | AH6: =기본사항!G16 -> 203-81-11111
B7: 세대주여부 | L7: 세대주 | O7: , | S7: 세대원 | Y7: 국적 | AH7: 한국 | AK7: ( 국적 코드: | AQ7: KR | AT7: )
I8: TRUE | X8: FALSE
B9: 근무기간 | I9: 20180101 | O9: ~ | P9: 20181231 | Y9: 감면기간 | AN9: ~
B10: 거주구분 | L10: 거주자 | O10: , | S10: 비거주자 | Y10: 거주지국 | AH10: 한국 | AK10: ( 거주지국 코드: | AQ10: KR | AT10: )
I11: TRUE | X11: FALSE
B12: 인적공제 항목변동 여부 | K12: 전년과동일 | O12: , | S12: 변동 | Y12: 분납신청 여부 | AL12: 신청 | AO12: , | AS12: 미신청
B13: 원천징수세액 선택 | K13: 1.2 | O13: 1 | T13: 0.8 | Y13: ※ 근로소득자 본인이 원하는 경우 매월 원천징수하는 세액을 법령상 세액의 120%, 100%, 80% 중 선택할 수 있습니다.
B14: Ⅰ.인적공제 및 소득공제명세 | C14: 인적공제항목 | Y14: 각종 소득ㆍ세액 공제 항목
C15: 관계코드 | F15: 성명 | L15: 기본공제 | R15: 경로우대 | U15: 출산입양 | Y15: 자료 구분 | AB15: 보험료 | AJ15: 의료비 | AR15: 교육비
C16: 내ㆍ외 국인 | F16: 주민등록번호 | L16: 부녀자 | O16: 한부모 | R16: 장애인 | U16: 6세이하 | AB16: 건강 | AD16: 고용 | AF16: 보장성 | AH16: 장애인 전용 보장성 | AJ16: 일반 | AL16: 난임 | AN16: 65세이상 장애인 건강보험 산정특례자 | AP16: 실손의료 보험금 | AR16: 일반 | AT16: 장애인
C17: 인적공제 항목에 해당하는 | L17: =인적공제!G17 -> 5 | R17: =인적공제!M17 -> 1 | U17: =인적공제!I17 -> 0 | Y17: 국세청계 | AB17: =AB19+AB21+AB23+AB25+AB27+AB29+AB31+AB33+AB35+AB37 -> 0 | AD17: =AD19+AD21+AD23+AD25+AD27+AD29+AD31+AD33+AD35+AD37 -> 0 | AF17: =AF19+AF21+AF23+AF25+AF27+AF29+AF31+AF33+AF35+AF37 -> 0 | AH17: =AH19+AH21+AH23+AH25+AH27+AH29+AH31+AH33+AH35+AH37 -> 0 | AJ17: =AJ19+AJ21+AJ23+AJ25+AJ27+AJ29+AJ31+AJ33+AJ35+AJ37 -> 0 | AL17: =AL19+AL21+AL23+AL25+AL27+AL29+AL31+AL33+AL35+AL37 -> 0 | AN17: =AN19+AN21+AN23+AN25+AN27+AN29+AN31+AN33+AN35+AN37 -> 0 | AP17: =AP19+AP21+AP23+AP25+AP27+AP29+AP31+AP33+AP35+AP37 -> 0 | AR17: =AR19+AR21+AR23+AR25+AR27+AR29+AR31+AR33+AR35+AR37 -> 0 | AT17: =AT19+AT21+AT23+AT25+AT27+AT29+AT31+AT33+AT35+AT37 -> 0
C18: 인원수를 기재 (자녀: | J18: 3 | K18: 명) | L18: =IF(O18="",IF(L20="","",1),"") ->  | O18: =IF(O20="","",1) ->  | R18: =인적공제!K17 -> 0 | U18: =인적공제!L17 -> 1 | Y18: 기타계 | AB18: =AB20+AB22+AB24+AB26+AB28+AB30+AB32+AB34+AB36+AB38 -> 883200 | AD18: =AD20+AD22+AD24+AD26+AD28+AD30+AD32+AD34+AD36+AD38 -> 201600 | AF18: =AF20+AF22+AF24+AF26+AF28+AF30+AF32+AF34+AF36+AF38 -> 0 | AH18: =AH20+AH22+AH24+AH26+AH28+AH30+AH32+AH34+AH36+AH38 -> 0 | AJ18: =AJ20+AJ22+AJ24+AJ26+AJ28+AJ30+AJ32+AJ34+AJ36+AJ38 -> 0 | AL18: =AL20+AL22+AL24+AL26+AL28+AL30+AL32+AL34+AL36+AL38 -> 0 | AN18: =AN20+AN22+AN24+AN26+AN28+AN30+AN32+AN34+AN36+AN38 -> 0 | AP18: =AP20+AP22+AP24+AP26+AP28+AP30+AP32+AP34+AP36+AP38 -> 0 | AR18: =AR20+AR22+AR24+AR26+AR28+AR30+AR32+AR34+AR36+AR38 -> 0 | AT18: =AT20+AT22+AT24+AT26+AT28+AT30+AT32+AT34+AT36+AT38 -> 0
C19: 0 | F19: =I5 -> 이영화 | L19: ○ | Y19: 국세청
C20: 1 | F20: (근로자 본인) | Y20: 기타 | AB20: =급여내역!CB20+급여내역!CD20 -> 883200 | AD20: =급여내역!CC20 -> 201600
C21: 3 | F21: 조세희 | L21: ○ | Y21: 국세청
C22: 1 | F22: 710415-2031653 | Y22: 기타
C23: 1 | F23: 편람일 | L23: ○ | R23: ○ | Y23: 국세청
C24: 1 | F24: 481103-2019015 | Y24: 기타
C25: 4 | F25: 이대한 | L25: ○ | Y25: 국세청
C26: 1 | F26: 091206-4059631 | Y26: 기타
C27: 4 | F27: 이민국 | L27: ○ | Y27: 국세청
C28: 1 | F28: 151230-3059632 | U28: ○ | Y28: 기타
Y29: 국세청
Y30: 기타
Y31: 국세청
Y32: 기타
Y33: 국세청
Y34: 기타
Y35: 국세청
Y36: 기타
Y37: 국세청
Y38: 기타
C39: 각종 소득ㆍ세액 공제 항목
C40: 자료 구분 | F40: 신용카드등 사용액 | AR40: 기부금
F41: 신용카드 | L41: 직불카드등 | R41: 현금영수증 | X41: 도서공연등사용분 (총급여 7천만원 이하자만 기재) | AD41: 전통시장사용분 | AK41: 대중교통 이용분
C43: 국세청계 | F43: =F45+F47+F49+F51+F53+F55+F57+F59+F61+F63 -> 12000000 | L43: =L45+L47+L49+L51+L53+L55+L57+L59+L61+L63 -> 0 | R43: =R45+R47+R49+R51+R53+R55+R57+R59+R61+R63 -> 4500000 | X43: =X45+X47+X49+X51+X53+X55+X57+X59+X61+X63 -> 0 | AD43: =AD45+AD47+AD49+AD51+AD53+AD55+AD57+AD59+AD61+AD63 -> 0 | AK43: =AK45+AK47+AK49+AK51+AK53+AK55+AK57+AK59+AK61+AK63 -> 1200000 | AR43: =AR45+AR47+AR49+AR51+AR53+AR55+AR57+AR59+AR61+AR63 -> 0
C44: 기타계 | F44: =F46+F48+F50+F52+F54+F56+F58+F60+F62+F64 -> 0 | L44: =L46+L48+L50+L52+L54+L56+L58+L60+L62+L64 -> 0 | X44: =X46+X48+X50+X52+X54+X56+X58+X60+X62+X64 -> 0 | AD44: =AD46+AD48+AD50+AD52+AD54+AD56+AD58+AD60+AD62+AD64 -> 0 | AK44: =AK46+AK48+AK50+AK52+AK54+AK56+AK58+AK60+AK62+AK64 -> 0 | AR44: =AR46+AR48+AR50+AR52+AR54+AR56+AR58+AR60+AR62+AR64 -> 0
C45: 국세청 | F45: 12000000 | R45: 4500000 | AK45: 1200000
C46: 기타
C47: 국세청
C48: 기타
C49: 국세청
C50: 기타
C51: 국세청
C52: 기타
C53: 국세청
C54: 기타
C55: 국세청
C56: 기타
C57: 국세청 | BB57: =IF(O58="",Z57+Z58,0) -> 0
C58: 기타
C59: 국세청 | BB59: =IF(O60="",Z59+Z60,0) -> 0
C60: 기타
C61: 국세청 | BB61: =IF(O62="",Z61+Z62,0) -> 0
C62: 기타
C63: 국세청 | BB63: =IF(O64="",Z63+Z64,0) -> 0
C64: 기타
B66: 유의사항
C67: 1. “인적공제 항목 변동 여부”란에는 해당 항목에 “√”표시합니다(인적공제 항목이 전년과 동일한 경우에는 주민등록표등본을 제출하지 않습니다).
C68: 2. 관계코드
F69: 구 분 | N69: 관계코드 | R69: 구 분 | AB69: 관계코드 | AF69: 구 분 | AP69: 관계코드
F70: 소득자 본인 (「소득세법」 §50①1) | N70: 0 | R70: 소득자의 직계존속 (「소득세법」 §50①3가) | AB70: 1 | AF70: 배우자의 직계존속 (「소득세법」 §50①3가) | AP70: 2
F71: 배우자 (「소득세법」 §50①2) | N71: 3 | R71: 직계비속(자녀ㆍ입양자) (「소득세법」 §50①3나) | AB71: 4 | AF71: 직계비속(코드 4 제외) (「소득세법」 §50①3나) | AP71: 5*
F72: 형제자매 (「소득세법」 §50①3다) | N72: 6 | R72: 수급자(코드1~6제외) (「소득세법」 §50①3라) | AB72: 7 | AF72: 위탁아동 (「소득세법」 §50①3마) | AP72: 8
F73: * 관계코드 5: 해당 직계비속과 그 배우자가 장애인인 경우 그 배우자를 말하며, 관계코드 4~6은 소득자와 배우자의 각각의 관계를 포함합니다.
C74: 3. 연령기준 - 경로우대: ( . . .) 이전 출생(만 70세 이상: 연 100만원 공제)
C75: 4. "부녀자 공제"란에는 소득자 본인이 여성인 경우로서 다음의 요건을 모두 충족하는 경우에 표시합니다. 가. 해당 과세기간의 종합소득과세표준을 계산할 때 합산하는 종합소득금액이 3천만원 이하일 것 나. 배우자가 없는 여성으로서 「소득세법」 제50조제1항제3호에 따른 부양가족이 있는 세대주이거나 배우자가 있는 여성일 것
C76: 5. "장애인 공제"란에는 다음의 해당 코드를 적습니다.
F77: 구분 | I77: 「장애인복지법」에 따른 장애인 | S77: 「국가유공자 등 예우 및 지원에 관한 법률」에 따른 상이자 및 이와 유사한 자로서 근로능력이 없는 자 | AG77: 그 밖에 항시 치료를 요하는 중증환자
F78: 해당코드 | I78: 1 | S78: 2 | AG78: 3
C80: 6. 내ㆍ외국인: 내국인=1, 외국인=9로 구분하여 적습니다. 종교관련종사자가 외국인에 해당하는 경우 국적을 적으며, 국적코드는 거주지국코드를 참조하여 적습니다.
C81: 7. 내ㆍ외국인: 내국인=1, 외국인=9로 구분하여 적습니다. 근로소득자가 외국인에 해당하는 경우 국적을 적으며, 국적코드는 거주지국코드를 참조하여 적습니다.
AU83: 210㎜×297㎜
AU84: (8쪽 중 제2쪽)
B85: 구분 | G85: 지출명세 | V85: 지출구분 | AD85: 금액 | AJ85: 한도액 | AP85: 공제액
B86: Ⅱ.연금보험료공제 | C86: 연금보험료(국민연금, 공무원연금, 군인연금, 교직원연금 등) | G86: 국민연금보험료 | M86: 종(전)근무지 | V86: 보험료 | AD86: =급여내역!CA26+급여내역!CA33+급여내역!CA40 -> 0 | AJ86: 전액 | AP86: =AD86 -> 0
M87: 주(현)근무지 | V87: 보험료 | AD87: =급여내역!CA20 -> 1134000 | AJ87: 전액 | AP87: =AD87 -> 1134000
G88: 국민연금보험료 외의 공적연금보험료 | M88: 종(전)근무지 | V88: 보험료 | AD88: 300000 | AJ88: 전액 | AP88: =AD88 -> 300000
M89: 주(현)근무지 | V89: 보험료 | AJ89: 전액 | AP89: =AD89 -> 0
G90: 연금보험료 계 | AD90: =SUM(AD86:AI89) -> 1434000 | AP90: =SUM(AP86:AU89) -> 1434000
B91: Ⅲ.특별소득공제 | C91: 보험료 | G91: 국민건강보험(노인장기요양보험포함) | M91: 종(전)근무지 | V91: 보험료 | AD91: 50000 | AJ91: 전액 | AP91: =AD91 -> 50000
M92: 주(현)근무지 | V92: 보험료 | AD92: =급여내역!CB20+급여내역!CD20 -> 883200 | AJ92: 전액 | AP92: =AD92 -> 883200
G93: 고용보험 | M93: 종(전)근무지 | V93: 보험료 | AD93: =급여내역!CC26+급여내역!CC33+급여내역!CC40 -> 0 | AJ93: 전액 | AP93: =AD93 -> 0
M94: 주(현)근무지 | V94: 보험료 | AD94: =급여내역!CC20 -> 201600 | AJ94: 전액 | AP94: =AD94 -> 201600
G95: 보험료 계 | AD95: =SUM(AD91:AI94) -> 1134800 | AP95: =SUM(AP91:AU94) -> 1134800
C96: 주택자금 | G96: 주택임차차입금 | M96: 대출기관차입 | V96: 원리금 상환액 | AD96: 3800000 | AJ96: 작성방법참조 | AP96: =ROUNDDOWN(MIN(3000000,AD96*0.4),0) -> 1520000
M97: 거주자 차입 | AP97: =ROUNDDOWN(MIN((3000000-AP96),AD97*0.4),0) -> 0
G98: 장기 주택 저당 차입금 | J98: 2011년 이전 차입분 | M98: 15년 미만 | V98: 이자 상환액 | AJ98: 작성방법참조 | AP98: =IF(AD98="",0,MIN(AD98,(6000000-AP96-AP97))) -> 0
M99: 15년~29년 | AP99: =IF(AD99="",0,MIN(AD99,(10000000-AP96-AP97))) -> 0
M100: 30년 이상 | AP100: =IF(AD100="",0,MIN(AD100,(15000000-AP96-AP97))) -> 0
J101: 2012년 이후 차입분 (15년 이상) | M101: 고정금리이거나, 비거치상환 대출 | AP101: =IF(AD101="",0,MIN(AD101,(15000000-AP96-AP97))) -> 0
M102: 기타 대출 | AP102: =IF(AD102="",0,MIN(AD102,(5000000-AP96-AP97))) -> 0
J103: 2015년 이후 차입분 | M103: 15년 이상 | O103: 고정금리이면서, 비거치상환 대출 | AP103: =IF(AD103="",0,MIN(AD103,(18000000-AP96-AP97))) -> 0
O104: 고정금리이거나, 비거치상환 대출 | AP104: =IF(AD104="",0,MIN(AD104,(15000000-AP96-AP97))) -> 0
O105: 기타 대출 | AP105: =IF(AD105="",0,MIN(AD105,(5000000-AP96-AP97))) -> 0
M106: 10년~ 15년 | O106: 고정금리이거나, 비거치상환 대출 | AP106: =IF(AD106="",0,MIN(AD106,(3000000-AP96-AP97))) -> 0
G107: 주택자금 공제액 계 | AP107: =SUM(AP96:AU106) -> 1520000
C108: 기부금 (이월분) | G108: 법정기부금 | V108: 기부금이월액 | AJ108: 작성방법참조 | AP108: =IF(AD108="",0,MIN(AX110,AD108)) -> 0
G109: 지정기부금(종교단체 외) | V109: 기부금이월액 | AP109: =IF(AD109="",0,IF(AD110>0,MIN(AD109,(AX110*0.1)+MIN((AX110*0.2),AD109)),MIN(AD109,AX110*0.3))) -> 0 | AX109: 근로소득금액
G110: 지정기부금(종교단체) | V110: 기부금이월액 | AP110: =IF(AD110="",0,MIN(AD110,(AX110*0.1))) -> 0 | AX110: =영수증!Q65 -> 16170000
G111: 기부금이월분(합계) | AD111: =SUM(AD109:AI110) -> 0 | AP111: =SUM(AP109:AU110) -> 0
B112: Ⅳ.그밖의소득공제 | C112: 개인연금저축(2000년 이전가입) | V112: 납입금액 | AJ112: 납입액 40%와 72만원 | AP112: =ROUNDDOWN(IF(AD112="",0,MIN(AD112*0.4,720000)),0) -> 0 | AX112: 총급여액
C113: 소기업ㆍ소상공인 공제부금 | V113: 납입금액 | AJ113: 작성방법참조 | AP113: =IF(AD113="",0,IF(AX113>100000000,MIN(AD113,2000000),IF(AX113>40000000,MIN(AD113,3000000),MIN(AD113,5000000)))) -> 0 | AX113: =영수증!Q63 -> 25200000
C114: 주택마련저축 | G114: 청약저축 | V114: 납입금액 | AJ114: 작성방법참조 | AP114: =ROUNDDOWN(IF(AD114="",0,MIN(MIN(AD114,2400000)*0.4,MAX((AX114-AP96-AP97-SUM(AP98:AU106)),0))),0) -> 0 | AX114: =IF(AP98>0,6000000,IF(AP99>0,10000000,IF(AP100>0,15000000,IF(AP101>0,15000000,IF(AP102>0,5000000,3000000))))) -> 3000000
G115: 근로자주택마련저축 | V115: 납입금액 | AJ115: 작성방법참조 | AP115: =ROUNDDOWN(IF(AD115="",0,MIN(MIN(AD115,1800000)*0.4,MAX((AX114-AP96-AP97-AP114-SUM(AP98:AU106)),0))),0) -> 0
G116: 주택청약종합저축 | V116: 납입금액 | AJ116: 작성방법참조 | AP116: =ROUNDDOWN(IF(AD116="",0,MIN(MIN(AD116,2400000)*0.4,MAX((AX114-AP96-AP97-AP114-AP115-SUM(AP98:AU106)),0))),0) -> 0
G117: 주택마련저축 소득공제 계 | AD117: =SUM(AD114:AI116) -> 0 | AP117: =SUM(AP114:AU116) -> 0
C118: 투자조합 출자 등 | G118: 2017년 출자ㆍ투자분 | V118: 출자ㆍ투자금액 | AJ118: 0.1 | AP118: =MIN(ROUNDDOWN(IF(AD118="",0,AD118*AJ118),0),영수증!Q65*0.5) -> 0
G119: 2018년 출자ㆍ투자분 | V119: 출자ㆍ투자금액 | AJ119: 0.1 | AP119: =MIN(ROUNDDOWN(IF(AD119="",0,AD119*AJ119),0),영수증!Q65*0.5) -> 0
G120: 2019년 출자ㆍ투자분 | V120: 출자ㆍ투자금액 | AJ120: 0.1 | AP120: =MIN(ROUNDDOWN(IF(AD120="",0,AD120*AJ120),0),영수증!Q65*0.5) -> 0
G121: 투자조합 출자 등 소득공제 계 | AD121: =SUM(AD118:AI120) -> 0 | AP121: =SUM(AP118:AP120) -> 0
C122: 신용카드등사용액 | G122: ①신용카드 | V122: 사용금액 | AD122: =F43+F44 -> 12000000
G123: ②직불·선불카드 | V123: 사용금액 | AD123: =L43 -> 0
G124: ③현금영수증 | V124: 사용금액 | AD124: =R43+R44 -> 4500000
G125: ④도서·공연사용분(총급여 7천만원 이하자) | V125: 사용금액 | AD125: =X43+X44 -> 0
G126: ⑤전통시장사용분 | V126: 사용금액 | AD126: =AD43+AD44 -> 0
G127: ⑥대중교통이용분 | V127: 사용금액 | AD127: =AK43+AK44 -> 1200000
G128: 계(①+②+③+④+⑤+⑥) | AD128: =SUM(AD122:AI127) -> 17700000 | AP128: =신용카드!AP24 -> 2685000
G129: ⑥ 본인 신용카드 등 사용액(2014년) | U129: 사용금액
G130: ⑦ 본인 신용카드 등 사용액(2015년) | U130: 사용금액
G131: ⑧ 본인 추가공제율 사용분(2014년) | U131: 사용금액
G132: ⑨ 본인 추가공제율 사용분(2016년 상반기) | U132: 사용금액
G133: ⑩ 본인 신용카드 등 사용액(2016년) | U133: 사용금액
G134: ⑪ 본인 추가공제율 사용분(2015년) | U134: 사용금액
G135: ⑫ 본인 추가공제율 사용분 (2016년 하반기 또는 2017년 상반기) | U135: 사용금액
C136: 우리사주조합 출연금 | V136: 출연금액 | AJ136: 작성방법참조 | AP136: =IF(AD136="",0,MIN(AD136,4000000)) -> 0
C137: 우리사주조합 기부금 | U137: 기부금액 | AJ137: 작성방법참조
C138: 고용유지중소기업 근로자 | V138: 임금삭감액 | AJ138: 작성방법참조 | AP138: =ROUNDDOWN(IF(AD138="",0,MIN(AD138*0.5,10000000)),0) -> 0
C139: 목돈 안드는 전세이자 상환액 | U139: 이자상환액 | AJ139: 작성방법참조 | AP139: =ROUNDDOWN(IF(AD139="",0,MIN(AD139*0.4,3000000)),0) -> 0
C140: 장기집합투자증권저축 | V140: 납입금액 | AJ140: 작성방법참조 | AP140: =ROUNDDOWN(IF(AD140="",0,MIN(AD140*0.4,2400000)),0) -> 0
AU141: 210㎜×297㎜
AU142: (8쪽 중 제3쪽)
B143: 구분 | E143: 세액감면․공제명세 | U143: 세액감면․공제 명세
B144: Ⅴ.세액감면및공제 | C144: 세액감면 | E144: 외국인 근로자 | I144: 입국목적 | P144: 정부간 협약 기술도입계약 「조세특례제한법」상 감면 조세조약 상 감면
I145: 기술도입계약 또는 근로제공일 | AD145: 감면기간만료일
I146: 외국인 근로소득에 대한 감면 | U146: 접수일 | AJ146: 제출일
I147: 근로소득에 대한 조세조약 상 면제 | U147: 접수일 | AJ147: 제출일
E148: 중소기업 취업자 감면 | U148: 취업일 | AJ148: 감면기간종료일
C149: 세액공제 | E149: 공제종류 | U149: 명세 | AE149: 한도액 | AJ149: 공제대상금액 | AO149: 공제율 | AR149: 공제세액
E150: 연금계좌 | I150: 과학기술인공제 | U150: 납입금액 | AE150: 작성방법참조 | AJ150: =IF(Y150="",0,MIN(Y150,7000000)) -> 0 | AO150: 12% 또는 15% | AR150: =영수증!AL76 -> 0
I151: 「근로자퇴직급여 보장법」에 따른 퇴직연금 | U151: 납입금액 | AJ151: =IF(Y151="",0,MIN(Y151,7000000-AJ150)) -> 0 | AR151: =영수증!AL78 -> 0
I152: 연금저축 | U152: 납입금액 | AJ152: =IF(Y152="",0,MIN(MIN(IF((7000000-AJ150-AJ151)<0,0,(7000000-AJ150-AJ151)),Y152),IF(AX152>120000000,3000000,4000000))) -> 0 | AR152: =영수증!AL80 -> 0 | AX152: =영수증!Q63 -> 25200000
I153: 연금계좌 계 | Y153: =SUM(Y150:AD152) -> 0 | AJ153: =SUM(AJ150:AN152) -> 0 | AR153: =SUM(AR150:AU152) -> 0
E154: 특별세액공제 | G154: 보 험 료 | I154: 보장성 | U154: 보험료 | AE154: 100만원 | AJ154: =IF(Y154="",0,MIN(Y154,1000000)) -> 0 | AO154: 0.12 | AR154: =ROUNDDOWN(AJ154*0.12,0) -> 0 | AX154: 총급여3% | AY154: =ROUNDDOWN(영수증!Q63*0.03,0) -> 756000
I155: 장애인전용보장성 | U155: 보험료 | AE155: 100만원 | AJ155: =IF(Y155="",0,MIN(Y155,1000000)) -> 0 | AO155: 0.15 | AR155: =ROUNDDOWN(AJ155*0.15,0) -> 0 | AX155: 3%초과의료비 | AY155: =(AJ161-AY154) -> -756000
I156: 보험료 계 | Y156: =SUM(Y154:AD155) -> 0 | AJ156: =SUM(AJ154:AN155) -> 0 | AR156: =SUM(AR154:AU155) -> 0 | AX156: 한도액 | AY156: 7000000
G157: 의 료 비 | I157: 본인ㆍ65세이상자ㆍ장애인 ㆍ건강보험산정특례자 | U157: 지출액 | Y157: 0 | AE157: 작성방법참조 | AJ157: =MAX(IF(AX159<0,Y157+AX159,Y157),0) -> 0 | AO157: 0.15 | AR157: =AJ157*AO157 -> 0
I158: 난임시술비 | U158: 지출액 | Y158: 0 | AJ158: =MAX(IF(AX161<0,Y158+AX161,Y158),0) -> 0 | AO158: 0.2 | AR158: =AJ158*AO158 -> 0
I159: 그 밖의 공제대상자 | U159: 지출액 | Y159: 0 | AJ159: =IF(Y159="",0,MIN(MAX(Y159-AY154,0),7000000)) -> 0 | AO159: 0.15 | AR159: =AJ159*AO159 -> 0 | AX159: =IF(Y159="",0,MIN((Y159-ROUNDDOWN(영수증!Q63*0.03,0)),7000000)) -> -756000
I160: 실손의료보험금 계 | U160: 수령액
I161: 의료비계 | Y161: =SUM(Y157:AD160) -> 0 | AJ161: =MAX(SUM(AJ157:AN159),0) -> 0 | AR161: =SUM(AR157:AU159) -> 0 | AX161: =IF(AX159<0,Y157+AX159,Y158) -> -756000
G162: 교 육 비 | I162: 소득자 본인 | U162: 공납금 (대학원 포함) | AE162: 전액 | AJ162: =Y162 -> 0 | AO162: 0.15 | AR162: =ROUNDDOWN(AJ162*0.15,0) -> 0
I163: 취학전 아동 | P163: ( | T163: 명) | U163: 유치원, 학원비 등 | AE163: 1명당 300만원 | AJ163: =IF(Y163="",0,MIN(Y163,3000000*Q163)) -> 0 | AR163: =ROUNDDOWN(IF(Y163="",0,AJ163*0.15),0) -> 0
I164: 초ㆍ중ㆍ고등학교 | P164: ( | T164: 명) | U164: 공납금 | AE164: 1명당 300만원 | AJ164: =IF(Y164="",0,MIN(Y164,3000000*Q164)) -> 0 | AR164: =ROUNDDOWN(IF(Y164="",0,AJ164*0.15),0) -> 0
I166: 대학생(대학원 불포함) | P166: ( | T166: 명) | U166: 공납금 | AE166: 1명당 900만원 | AJ166: =IF(Y166="",0,MIN(Y166,9000000*Q166)) -> 0 | AR166: =ROUNDDOWN(IF(Y166="",0,AJ166*0.15),0) -> 0
I167: 장애인 | P167: ( | T167: 명) | U167: 특수교육비 | AE167: 전액 | AJ167: =Y167 -> 0 | AR167: =ROUNDDOWN(IF(Y167="",0,AJ167*0.15),0) -> 0
I168: 교육비 계 | Y168: =SUM(Y162:AD167) -> 0 | AJ168: =SUM(AJ162:AN167) -> 0 | AR168: =SUM(AR162:AU167) -> 0
G169: 기 부 금 | I169: 정치자금 기부금 | M169: 10만원 이하 | U169: 기부금액 | AJ169: =Y169 -> 0 | AO169: 100/110 | AR169: =ROUNDDOWN(IF(AJ169="",0,(AJ169*100/110)),0) -> 0
M170: 10만원 초과 | U170: 기부금액 | AJ170: =IF(Y170="",0,MIN(Y170,영수증!Q65-AP111)) -> 0 | AO170: 15% 또는 25% 또는 30% | AR170: =ROUNDDOWN(IF(AJ170<=29900000,(AJ170*0.15),(AJ170-29900000)*0.25+4485000),0) -> 0
I171: 법정기부금 | U171: 기부금액 | AE171: 작성방법참조 | AJ171: =IF(Y171="",0,MIN(Y171,(영수증!Q65-AJ169-AJ170-AP108))) -> 0 | AR171: =ROUNDDOWN(IF(AJ171<=20000000,(AJ171*0.15),(AJ171-20000000)*0.3+3000000),0) -> 0
I172: 우리사주조합기부금 | U172: 기부금액 | Y172: 0 | AJ172: =IF(Y172="",0,MIN(Y172,(영수증!Q65-AJ169-AJ170-AJ171)*0.3)) -> 0 | AR172: =ROUNDDOWN(IF(AJ172<=20000000,(AJ172*0.15),(AJ172-20000000)*0.3+3000000),0) -> 0
I173: 지정기부금(종교단체외) | U173: 기부금액 | Y173: 0 | AI173: =(영수증!Q65-AJ169-AJ170-AJ171-AJ172-AP111) -> 16170000 | AJ173: =IF(Y173="",0,IF(Y174>0,MIN(Y173,(AI173*0.1)+MIN((AI173*0.2),Y173)),MIN(Y173,AI173*0.3))) -> 0 | AR173: =ROUNDDOWN(IF(AJ173<=20000000,(AJ173*0.15),(AJ173-20000000)*0.3+3000000),0) -> 0
I174: 지정기부금(종교단체) | U174: 기부금액 | AJ174: =IF(Y174="",0,MIN(Y174,(AJ172*0.1))) -> 0 | AR174: =ROUNDDOWN(IF(AJ174<=20000000,(AJ174*0.15),(AJ174-20000000)*0.3+3000000),0) -> 0
I175: 기부금 계 | Y175: =SUM(Y169:AD174) -> 0 | AJ175: =SUM(AJ169:AN174) -> 0 | AR175: =SUM(AR169:AU174) -> 0
E176: 외국납부세액 | U176: 국외원천소득 | AJ176: 국외근로소득금액 | AP176: =IF(AD176=0,0,ROUNDDOWN(AD176-(영수증!Q64*(AD176/영수증!Q63)),0)) -> 0
U177: 납세액(외화)
U178: 납세액(원화) | AJ178: -
U179: 납세국명 | AJ179: 납부일
U180: 신청서제출일 | AJ180: 국외근무처
U181: 근무기간 | AJ181: 직책
E182: 주택자금차입금이자세액공제 | U182: 이자상환액 | AJ182: 0.3 | AP182: =ROUNDDOWN(AD182*0.3,0) -> 0
E183: 월세액 세액공제 | U183: 지출액 | AD183: 0 | AJ183: 10% 또는 12% | AP183: =ROUNDDOWN(MIN(AD183,7500000)*IF(영수증!Q63<=55000000,0.12,IF(영수증!Q63<=70000000,0.1,0)),0) -> 0
C184: 신고인은「소득세법」제140조에 따라 위의 내용을 신고하며, 위 내용을 충분히 검토하였고 신고인이 알고 있는 사실 그대로를 정확하게 적었음을 확인합니다.
B185: 2020년 월 일
AD186: 신고인 | AH186: =I5 -> 이영화 | AO186: (서명 또는 인)
B187: Ⅵ. 추가 제출 서류
B188: 1. 외국인근로자 단일세율적용신청서 제출여부(○ 또는 ×로 적습니다) | AL188: 제출( | AP188: )
B189: 2.종(전) 근무지명세 | F189: 종(전)근무지명 | U189: 종(전)급여총액 | AJ189: 종(전)근무지 근로소득원천징수영수증
F190: 사업자등록번호 | U190: 종(전)결정세액 | AJ190: 제출( | AP190: )
B191: 3. 연금.저축 등 소득․세액공제 명세서 제출여부 (○ 또는 ×로 적습니다) | V191: 제출( | Z191: ) | AA191: ※ 연금계좌, 주택마련저축 등 소득·세액공제를 신청한 경우 해당 명세서를 제출하여야 합니다.
B193: 4. 월세액․거주자 간 주택임차차입금 원리금상환액 소득공제 명세서 제출여부 (○ 또는 ×로 적습니다) | V193: 제출( | Z193: ) | AA193: ※ 월세액, 거주자 간 주택임차차입금 원리금상환액 소득·세액공제를 신청한 경우 해당 명세서를 제출해야 합니다.
B195: 5. 그 밖의 추가 제출 서류 | O195: ① 의료비지급명세서 | U195: ( | X195: ) | Y195: , | Z195: ② 기부금명세서 | AF195: ( | AI195: ) | AJ195: , | AK195: ③ 소득.세액공제 증명서류
B196: 유 의 사 항
C197: 1. 근로소득자가 종(전)근무지 근로소득을 원천징수의무자에게 신고하지 않은 경우에는 근로소득자 본인이 종합소득세 신고를 해야 하며, 신고하지 않은 경우 가산세 부과 등 불이익이 따릅니다. 2. 현 근무지의 연금보험료ㆍ국민건강보험료 및 고용보험료 등은 신고인이 기재하지 않아도 됩니다. 3. "공제금액"란은 근로소득자가 원천징수의무자에게 제출하는 경우 적지 않을 수 있습니다.
AU198: 210㎜×297㎜
AU199: (8쪽 중 제7쪽)
B200: 연금․저축 등 소득․세액 공제명세서
B201: 1.인적사항
B202: ①상 호 | I202: =기본사항!G14 -> (주)조세통람 | Y202: ②사 업 자 등 록 번 호 | AH202: =기본사항!G16 -> 203-81-11111
B203: ③성 명 | I203: =기본사항!G7 -> 이영화 | Y203: ④주 민 등 록 번 호 | AH203: =기본사항!G8 -> 123456-1234567
B204: ⑤주 소 | I204: =기본사항!G9 -> 서울 중구 다산로11길 25 | AH204: (전화번호: | AN204: )
B205: ⑥사업장소재지 | I205: =기본사항!G18 -> 서울 중구 동호로14길 5-6 | AH205: (전화번호: | AN205: )
B206: 2. 연금계좌 세액공제
B207: 1) 퇴직연금계좌
B208: * 퇴직연금계좌에 대한 명세를 작성합니다.
... 37 more rows

Sheet 급여내역
Y2: 2019년 급여지급내역
E4: [근무처명] : | M4: =기본사항!G14 -> (주)조세통람 | Y4: [사업자등록번호] : | AI4: =기본사항!G16 -> 203-81-11111 | AZ4: [근무기간] | BG4: 2018-01-01 | BM4: ~ | BO4: 2018-12-31 | BT4: [현근무지]
B5: 월별 | E5: 지급일자 | H5: 과 세 대 상 급 여 | AC5: 간이세액표에의한소득세 | AI5: 감면세액 | AL5: 차감원천징수액 | AX5: 비 과 세 소 득 | CA5: 국민연금 | CB5: 건강보험 | CC5: 고용보험 | CD5: 노인장기 요양보험
H6: 급여액 | M6: 상여액 | Q6: 인정상여 | U6: 주식매수 선택권 | V6: 우리사주 조합인출금 | W6: 임원퇴직 소득금액 한도초과액 | X6: 직무발명 보상금 | Y6: 계 | AL6: 소득세 | AP6: 지방 소득세 | AT6: 농특세 | AX6: 국 외 근 로 소 득 | BF6: 연구 활동비 | BK6: 야간 근로수당 | BO6: 출산 보육수당 | BP6: 외국인근로자 | BQ6: 그밖의비과세
AX7: 지급일자 | BB7: 원화 | BQ7: 내용 | BU7: 금액
B8: 1 | H8: 2100000 | Y8: =SUM(H8:X8) -> 2100000 | AC8: 22740 | AL8: 22740 | AP8: 2270 | CA8: 94500 | CB8: 67830 | CC8: 16800 | CD8: 5770
B9: 2 | H9: 2100000 | Y9: =SUM(H9:X9) -> 2100000 | AC9: 22740 | AL9: 22740 | AP9: 2270 | CA9: 94500 | CB9: 67830 | CC9: 16800 | CD9: 5770
B10: 3 | H10: 2100000 | Y10: 2100000 | AC10: 22740 | AL10: 22740 | AP10: 2270 | CA10: 94500 | CB10: 67830 | CC10: 16800 | CD10: 5770
B11: 4 | H11: 2100000 | Y11: 2100000 | AC11: 22740 | AL11: 22740 | AP11: 2270 | CA11: 94500 | CB11: 67830 | CC11: 16800 | CD11: 5770
B12: 5 | H12: 2100000 | Y12: 2100000 | AC12: 22740 | AL12: 22740 | AP12: 2270 | CA12: 94500 | CB12: 67830 | CC12: 16800 | CD12: 5770
B13: 6 | H13: 2100000 | Y13: 2100000 | AC13: 22740 | AL13: 22740 | AP13: 2270 | CA13: 94500 | CB13: 67830 | CC13: 16800 | CD13: 5770
B14: 7 | H14: 2100000 | Y14: 2100000 | AC14: 22740 | AL14: 22740 | AP14: 2270 | CA14: 94500 | CB14: 67830 | CC14: 16800 | CD14: 5770
B15: 8 | H15: 2100000 | Y15: 2100000 | AC15: 22740 | AL15: 22740 | AP15: 2270 | CA15: 94500 | CB15: 67830 | CC15: 16800 | CD15: 5770
B16: 9 | H16: 2100000 | Y16: 2100000 | AC16: 22740 | AL16: 22740 | AP16: 2270 | CA16: 94500 | CB16: 67830 | CC16: 16800 | CD16: 5770
B17: 10 | H17: 2100000 | Y17: 2100000 | AC17: 22740 | AL17: 22740 | AP17: 2270 | CA17: 94500 | CB17: 67830 | CC17: 16800 | CD17: 5770
B18: 11 | H18: 2100000 | Y18: 2100000 | AC18: 22740 | AL18: 22740 | AP18: 2270 | CA18: 94500 | CB18: 67830 | CC18: 16800 | CD18: 5770
B19: 12 | H19: 2100000 | Y19: 2100000 | AC19: 22740 | AL19: 22740 | AP19: 2270 | CA19: 94500 | CB19: 67830 | CC19: 16800 | CD19: 5770
B20: 계 | H20: =SUM(H8:L19) -> 25200000 | M20: =SUM(M8:P19) -> 0 | Q20: =SUM(Q8:T19) -> 0 | U20: =SUM(U8:U19) -> 0 | V20: =SUM(V8:V19) -> 0 | W20: =SUM(W8:W19) -> 0 | X20: =SUM(X8:X19) -> 0 | Y20: =SUM(Y8:AB19) -> 25200000 | AC20: =SUM(AC8:AH19) -> 272880 | AI20: =SUM(AI8:AK19) -> 0 | AL20: =SUM(AL8:AO19) -> 272880 | AP20: =SUM(AP8:AS19) -> 27240 | AT20: =SUM(AT8:AW19) -> 0 | BB20: =SUM(BB8:BE19) -> 0 | BF20: =SUM(BF8:BJ19) -> 0 | BK20: =MIN(SUM(BK8:BN19),2400000) -> 0 | BO20: =SUM(BO8:BO19) -> 0 | BP20: =SUM(BP8:BP19) -> 0 | BU20: =SUM(BU8:BZ19) -> 0 | CA20: =SUM(CA8:CA19) -> 1134000 | CB20: =SUM(CB8:CB19) -> 813960 | CC20: =SUM(CC8:CC19) -> 201600 | CD20: =SUM(CD8:CD19) -> 69240
E22: [근무처명] : | M22: ㈜우인 | Y22: [사업자등록번호] : | AI22: 101-81-22222 | AZ22: [근무기간] | BM22: ~ | BR22: [종(전)근무지]
B23: 월별 | E23: 지급일자 | H23: 과 세 대 상 급 여 | AC23: 간이세액표에의한소득세 | AI23: 감면세액 | AL23: 차감원천징수액 | AX23: 비 과 세 소 득 | CA23: 국민연금 | CB23: 건강보험 | CC23: 고용보험 | CD23: 노인장기 요양보험
H24: 급여액 | M24: 상여액 | Q24: 인정상여 | U24: =U6 -> 주식매수 선택권 | V24: =V6 -> 우리사주 조합인출금 | W24: =W6 -> 임원퇴직 소득금액 한도초과액 | X24: =X6 -> 직무발명 보상금 | Y24: 계 | AL24: 소득세 | AP24: =AP6 -> 지방 소득세 | AT24: 농특세 | AX24: 국 외 근 로 소 득 | BF24: =BF6 -> 연구 활동비 | BK24: =BK6 -> 야간 근로수당 | BO24: =BO6 -> 출산 보육수당 | BP24: =BP6 -> 외국인근로자 | BQ24: 그밖의비과세
AX25: 지급일자 | BB25: 원화 | BQ25: 내용 | BU25: 금액
B26: 계 | Y26: =SUM(H26:X26) -> 0
E29: [근무처명] : | Y29: [사업자등록번호] : | AZ29: [근무기간] | BM29: ~ | BR29: [종(전)근무지]
B30: 월별 | E30: 지급일자 | H30: 과 세 대 상 급 여 | AC30: 간이세액표에의한소득세 | AI30: 감면세액 | AL30: 차감원천징수액 | AX30: 비 과 세 소 득 | CA30: 국민연금 | CB30: 건강보험 | CC30: 고용보험 | CD30: 노인장기 요양보험
H31: 급여액 | M31: 상여액 | Q31: 인정상여 | U31: =U24 -> 주식매수 선택권 | V31: =V24 -> 우리사주 조합인출금 | W31: =W24 -> 임원퇴직 소득금액 한도초과액 | X31: =X24 -> 직무발명 보상금 | Y31: 계 | AL31: 소득세 | AP31: =AP24 -> 지방 소득세 | AT31: 농특세 | AX31: 국 외 근 로 소 득 | BF31: =BF24 -> 연구 활동비 | BK31: =BK24 -> 야간 근로수당 | BO31: =BO24 -> 출산 보육수당 | BP31: =BP24 -> 외국인근로자 | BQ31: 그밖의비과세
AX32: 지급일자 | BB32: 원화 | BQ32: 내용 | BU32: 금액
B33: 계 | Y33: =SUM(H33:X33) -> 0
E36: [근무처명] : | Y36: [사업자등록번호] : | AZ36: [근무기간] | BM36: ~ | BT36: [납세조합]
B37: 월별 | E37: 지급일자 | H37: 과 세 대 상 급 여 | AC37: 간이세액표에의한소득세 | AI37: 감면세액 | AL37: 차감원천징수액 | AX37: 비 과 세 소 득 | CA37: 국민연금 | CB37: 건강보험 | CC37: 고용보험 | CD37: 노인장기 요양보험
H38: 급여액 | M38: 상여액 | Q38: 인정상여 | U38: =U31 -> 주식매수 선택권 | V38: =V31 -> 우리사주 조합인출금 | W38: =W31 -> 임원퇴직 소득금액 한도초과액 | X38: =X31 -> 직무발명 보상금 | Y38: 계 | AL38: 소득세 | AP38: =AP31 -> 지방 소득세 | AT38: 농특세 | AX38: 국 외 근 로 소 득 | BF38: =BF31 -> 연구 활동비 | BK38: =BK31 -> 야간 근로수당 | BO38: =BO31 -> 출산 보육수당 | BP38: =BP31 -> 외국인근로자 | BQ38: 그밖의비과세
AX39: 지급일자 | BB39: 원화 | BQ39: 내용 | BU39: 금액
B40: 계 | Y40: =SUM(H40:X40) -> 0
G42: ㅁ 납세조합공제액: | U42: 원

Sheet 인적공제
C4: 인적공제액계산
C6: 인 적 공 제 | D6: 구분 | E6: 성명 | F6: 주민등록번호 | G6: 기본공제 | H6: 관계 | I6: 출산입양1 | J6: 출산입양2 | K6: 장애인 | L6: 6세이하 | M6: 경로우대 | N6: 세대주 | O6: 자녀수
D7: 본인 | E7: =신고서!F19 -> 이영화 | F7: =기본사항!$G$8 -> 123456-1234567 | G7: =IF(신고서!L19="○",1,0) -> 1 | H7: =신고서!C19 -> 0 | I7: =IF(신고서!U19="",0,1) -> 0 | J7: =IF(신고서!U19="○1",3,(IF(신고서!U19="○2",5,(IF(신고서!U19="○3",7,0))))) -> 0 | K7: =IF(신고서!R20="",0,1) -> 0 | L7: =IF(신고서!U20="○",1,0) -> 0 | M7: =IF(신고서!R19="○",1,0) -> 0 | N7: =IF(신고서!I8=TRUE,"예","아니오") -> 예 | O7: =신고서!J18 -> 3
D8: 부양가족1 | E8: =신고서!F21 -> 조세희 | F8: =신고서!F22 -> 710415-2031653 | G8: =IF(신고서!L21="○",1,0) -> 1 | H8: =신고서!C21 -> 3 | I8: =IF(신고서!U21="",0,1) -> 0 | J8: =IF(신고서!U21="○1",3,(IF(신고서!U21="○2",5,(IF(신고서!U21="○3",7,0))))) -> 0 | K8: =IF(신고서!R22="",0,1) -> 0 | L8: =IF(신고서!U22="○",1,0) -> 0 | M8: =IF(신고서!R21="○",1,0) -> 0 | N8: =IF(H8=3,IF(신고서!L21="",0,1),0) -> 1 | O8: =IF(신고서!L18=1,1,0) -> 0
D9: 부양가족2 | E9: =신고서!F23 -> 편람일 | F9: =신고서!F24 -> 481103-2019015 | G9: =IF(신고서!L23="○",1,0) -> 1 | H9: =신고서!C23 -> 1 | I9: =IF(신고서!U23="",0,1) -> 0 | J9: =IF(신고서!U23="○1",3,(IF(신고서!U23="○2",5,(IF(신고서!U23="○3",7,0))))) -> 0 | K9: =IF(신고서!R24="",0,1) -> 0 | L9: =IF(신고서!U24="○",1,0) -> 0 | M9: =IF(신고서!R23="○",1,0) -> 1 | O9: =IF(신고서!O18=1,1,0) -> 0
D10: 부양가족3 | E10: =신고서!F25 -> 이대한 | F10: =신고서!F26 -> 091206-4059631 | G10: =IF(신고서!L25="○",1,0) -> 1 | H10: =신고서!C25 -> 4 | I10: =IF(신고서!U25="",0,1) -> 0 | J10: =IF(신고서!U25="○1",3,(IF(신고서!U25="○2",5,(IF(신고서!U25="○3",7,0))))) -> 0 | K10: =IF(신고서!R26="",0,1) -> 0 | L10: =IF(신고서!U26="○",1,0) -> 0 | M10: =IF(신고서!R25="○",1,0) -> 0
D11: 부양가족4 | E11: =신고서!F27 -> 이민국 | F11: =신고서!F28 -> 151230-3059632 | G11: =IF(신고서!L27="○",1,0) -> 1 | H11: =신고서!C27 -> 4 | I11: =IF(신고서!U27="",0,1) -> 0 | J11: =IF(신고서!U27="○1",3,(IF(신고서!U27="○2",5,(IF(신고서!U27="○3",7,0))))) -> 0 | K11: =IF(신고서!R28="",0,1) -> 0 | L11: =IF(신고서!U28="○",1,0) -> 1 | M11: =IF(신고서!R27="○",1,0) -> 0
D12: 부양가족5 | E12: =신고서!F29 -> 0 | F12: =신고서!F30 -> 0 | G12: =IF(신고서!L29="○",1,0) -> 0 | H12: =신고서!C29 -> 0 | I12: =IF(신고서!U29="",0,1) -> 0 | J12: =IF(신고서!U29="○1",3,(IF(신고서!U29="○2",5,(IF(신고서!U29="○3",7,0))))) -> 0 | K12: =IF(신고서!R30="",0,1) -> 0 | L12: =IF(신고서!U30="○",1,0) -> 0 | M12: =IF(신고서!R29="○",1,0) -> 0
D13: 부양가족6 | E13: =신고서!F31 -> 0 | F13: =신고서!F32 -> 0 | G13: =IF(신고서!L31="○",1,0) -> 0 | H13: =신고서!C31 -> 0 | I13: =IF(신고서!U31="",0,1) -> 0 | J13: =IF(신고서!U31="○1",3,(IF(신고서!U31="○2",5,(IF(신고서!U31="○3",7,0))))) -> 0 | K13: =IF(신고서!R32="",0,1) -> 0 | L13: =IF(신고서!U32="○",1,0) -> 0 | M13: =IF(신고서!R31="○",1,0) -> 0
D14: 부양가족7 | E14: =신고서!F33 -> 0 | F14: =신고서!F34 -> 0 | G14: =IF(신고서!L33="○",1,0) -> 0 | H14: =신고서!C33 -> 0 | I14: =IF(신고서!U33="",0,1) -> 0 | J14: =IF(신고서!U33="○1",3,(IF(신고서!U33="○2",5,(IF(신고서!U33="○3",7,0))))) -> 0 | K14: =IF(신고서!R34="",0,1) -> 0 | L14: =IF(신고서!U34="○",1,0) -> 0 | M14: =IF(신고서!R33="○",1,0) -> 0
D15: 부양가족8 | E15: =신고서!F35 -> 0 | F15: =신고서!F36 -> 0 | G15: =IF(신고서!L35="○",1,0) -> 0 | H15: =신고서!C35 -> 0 | I15: =IF(신고서!U35="",0,1) -> 0 | J15: =IF(신고서!U35="○1",3,(IF(신고서!U35="○2",5,(IF(신고서!U35="○3",7,0))))) -> 0 | K15: =IF(신고서!R36="",0,1) -> 0 | L15: =IF(신고서!U36="○",1,0) -> 0 | M15: =IF(신고서!R35="○",1,0) -> 0
D16: 부양가족9 | E16: =신고서!F37 -> 0 | F16: =신고서!F38 -> 0 | G16: =IF(신고서!L37="○",1,0) -> 0 | H16: =신고서!C37 -> 0 | I16: =IF(신고서!U37="",0,1) -> 0 | J16: =IF(신고서!U37="○1",3,(IF(신고서!U37="○2",5,(IF(신고서!U37="○3",7,0))))) -> 0 | K16: =IF(신고서!R38="",0,1) -> 0 | L16: =IF(신고서!U38="○",1,0) -> 0 | M16: =IF(신고서!R37="○",1,0) -> 0
D17: 합계 | G17: =SUM(G7:G16) -> 5 | I17: 0 | J17: 0 | K17: 0 | L17: 1 | M17: 1

Sheet 신용카드
L3: ■ 조세특례제한법 시행규칙[별지 제74호의6서식] <개정(안) 2019. 12. 31.> | AU3: (앞 쪽)
C4: 그밖의 소득공제 | L4: 신용카드 등 소득공제 신청서
L5: 거 주 자 성 명 | W5: =기본사항!G7 -> 이영화 | AD5: 생 년 월 일 | AK5: =LEFT(기본사항!G8,6) -> 123456
C6: 그 밖 의 소 득 공 제 | D6: 개인연금소득공제 | E6: 개인연금저축납입액 | F6: =#REF! ->  | G6: 원 | L6: 근 무 처 명 칭 | W6: =기본사항!G14 -> (주)조세통람 | AD6: 사업자등록번호 | AK6: =기본사항!G16 -> 203-81-11111
D7: 연금저축소득공제 | E7: 연금저축납입액 | G7: 원 | L7: 1. 공제대상자 및 신용카드등사용금액 명세
D8: 소기업소상공인부금 | E8: 연간불입금액 | F8: =#REF! ->  | G8: 원 | L8: 공제대상자 | Y8: 신용카드 등 사용금액
D9: 주택마련저축 소득공제 | E9: 청약저축 | F9: =IF(#REF!="",0,MIN(#REF!,1200000)) ->  | G9: 원 | L9: ① 내·외국인 구분 | O9: ② 관계 | R9: ③ 성명 | V9: ④ 생년월일 | Y9: 자료 구분 | AA9: ⑤소 계 (⑥+⑦+⑧+⑨+⑩+⑪) | AD9: ⑥ 신용카드 | AG9: ⑦ 직불· 선불카드 등 | AJ9: ⑧ 현금 영수증 | AL9: ⑨도서공연 등 사용분 (총급여 7천만원 이하자만 기재) | AP9: ⑩ 전통시장 사용분 | AS9: ⑪ 대중교통 이용분
Y10: 국세청자료 | AD10: 12000000 | AG10: 4500000 | AS10: 1200000
Y11: 그 밖의 자료
Y12: 국세청자료
Y13: 그 밖의 자료
Y14: 국세청자료
Y15: 그 밖의 자료
Y16: 국세청자료
Y17: 그 밖의 자료
E18: 직불ㆍ선불카드(전통시장ㆍ대중교통사용분 제외) | F18: =#REF! ->  | G18: 원 | L18: ⑤-1 합 계 액 | AA18: =신고서!AD128 -> 17700000 | AD18: =신고서!AD122 -> 12000000 | AG18: =신고서!AD124 -> 4500000 | AJ18: =신고서!AD123 -> 0 | AL18: =신고서!AD125 -> 0 | AP18: =신고서!AD126 -> 0 | AS18: =신고서!AD127 -> 1200000
E19: 현금영수증(전통시장ㆍ대중교통사용분 제외) | F19: =#REF! ->  | G19: 원 | L19: 2. 신용카드등소득공제금액의 계산
E20: 전통시장사용분 | F20: =#REF! ->  | G20: 원 | L20: ⑫ 신용카드 사용분 공제금액 (⑥×15%) | P20: ⑬직불카드등 사용분 공제금액 (⑦+⑧)×30% | T20: ⑭도서공연 사용분 공제금액 (⑨×30%) | Y20: ⑮전통시장 사용분 공제금액 (⑩×40%) | AD20: ⑯대중교통 이용분 공제금액 (⑪×40%) | AI20: ⑰공제제외금액 계산
E21: 대중교통사용분 | F21: =#REF! ->  | G21: 원 | AI21: ⑰-1 총급여 | AN21: ⑰-2 최저사용금액 (⑰-1×25%) | AR21: ⑰-3 공제제외금액
E22: 계 | F22: =#REF! ->  | G22: 원 | L22: =ROUNDDOWN(AD18*0.15,0) -> 1800000 | P22: =ROUNDDOWN((AG18+AJ18)*0.3,0) -> 1350000 | T22: =ROUNDDOWN(AL18*0.3,0) -> 0 | Y22: =ROUNDDOWN(AP18*0.4,0) -> 0 | AD22: =ROUNDDOWN(AS18*0.4,0) -> 480000 | AI22: =영수증!Q63 -> 25200000 | AN22: =ROUNDDOWN(AI22*0.25,0) -> 6300000 | AR22: =IF(AN22<=AD18,AP27,IF(AN22<=(AD18+AG18+AJ18+AL18),AP28,AP29)) -> 945000
D23: 우리사주소득공제 | E23: 우리사주출연금에 대한 소득공제 | F23: =#REF! ->  | G23: 원 | L23: ⑱공제가능금액 [⑫+⑬+⑭+⑮+⑯ -(⑰-3)] | P23: ⑲공제한도액 [총급여 수준별 200만원, 250만원, 300만원과 (⑰-1)×20% 중 적은 금액] | U23: ⑳일반 공제금액 (⑱과 ⑲ 중 적은 금액) | Z23: ㉑전통시장 추가 공제금액 [⑱ > ⑲인 경우에 ⑱-⑲과 ⑮(한도:100만원) 중 적은 금액] | AE23: ㉒대중교통 추가 공제금액 [⑱ > ⑲인 경우에 ⑱-⑲-㉑과 ⑯ (한도:100만원) 중 적은 금액] | AJ23: ㉓도서ㆍ공연 등 추가 공제금액 [⑱ > ⑲인 경우에 ⑱-⑲-㉑-㉒과 ⑭(한도:100만원) 중 적은 금액] | AP23: ㉔ 최종 공제금액 (⑳+㉑+㉒+㉓)
D24: 장기주식저축소득공제 | E24: 장기주식저축에 대한 소득공제 | F24: =#REF! ->  | G24: 원 | L24: =L22+P22+T22+Y22+AD22-AR22 -> 2685000 | P24: =ROUNDDOWN(IF(AI22>120000000,2000000,IF(AI22>70000000,2500000,MIN(3000000,(AI22*0.2)))),0) -> 3000000 | U24: =MIN(L24,P24) -> 2685000 | Z24: =IF(L24>P24,MIN(1000000,MIN(MAX(L24-P24,0),Y22)),0) -> 0 | AE24: =IF(L24>P24,MIN(1000000,MIN(MAX((L24-P24-Z24),0),AD22)),0) -> 0 | AJ24: =IF(L24>P24,MIN(1000000,MIN(MAX((L24-P24-Z24-AE24),0),T22)),0) -> 0 | AP24: =MAX((U24+Z24+AE24+AJ24),0) -> 2685000
D25: 고용유지 중소기업근로자소득공제 | E25: 전년대비 임금삭감액 | F25: =#REF! ->  | G25: 원 | L25: ⑰-3 계산
D26: 목돈안드는전세이자상환 | F26: =#REF! ->  | G26: 원 | L26: 구 분 | Y26: 계산식 | AP26: ⑰-3
L27: ⑥ ≥ (⑰-2) | Y27: (⑰-2)×15% | AP27: =ROUNDDOWN(AN22*0.15,0) -> 945000
L28: ⑥ + ⑦ + ⑧ + ⑨ ≥ (⑰-2) 〉⑥ | Y28: ⑥×15% + {(⑰-2) - ⑥}×30% | AP28: =ROUNDDOWN(L22+((AN22-AD18)*0.3),0) -> 90000
L29: (⑰-2) > ⑥ + ⑦ + ⑧ + ⑨ | Y29: ⑥×15% + (⑦+⑧+⑨)×30% + {(⑰-2)-⑥-⑦-⑧-⑨}×40% | AP29: =ROUNDDOWN(L22+(AG18+AJ18+AL18)*0.3+(AN22-(AD18+AG18+AJ18+AL18))*0.4,0) -> -930000
L30: 「조세특례제한법 시행령」제121조의2 제8항에 따라 신용카드등사용금액에 대한 소득공제를 신청합니다.
AN31: 2020년 | AQ31: 월 | AT31: 일
AF32: 신청인 : | AJ32: =W5 -> 이영화 | AM32: (서명 또는 인)
X33: 귀하
L35: 첨부 서류 | O35: 다음 각 호의 어느 하나에 해당하는 서류 1. 신용카드등사용금액확인서(별지 제74호의5서식을 말합니다) 1부 및 승차권 등 대중교통이용분임을 증명할 수 있는 서류(대중교통이용분이 있는 경우로 한정합니다) 2. 소득공제명세를 일괄적으로 기재하여 국세청장이 발급하는 서류(국세청 연말정산간소화 서비스(www.hometax.go.kr→조회/발급→연말정산간소화)에서 제공하는 연말정산소득공제 명세를 말합니다) | AR35: 수수료
AR36: 없음
AU37: 210mm×297mm

Sheet 기부금
B2: 기부금 공제 명세
B4: 구분 | G4: 기부금의 구분 | O4: 2018년 소득공제대상 이월기부금의 지출연도 | W4: 기부금액 | AS4: 소득공제액
B5: 기부금 소득공제 (이월분) | G5: 법정기부금 (법정, 코드10) | O5: 2013년 | W5: 0 | AK5: 법정기부금 한도계산을 위한 소득금액 | AS5: =IF(W5="",0,MIN(W5,AK11)) -> 0
G6: 우리사주기부금 (조특법88의4, 코드42) | W6: 0 | AK6: =MAX((AK10-AS10),0) -> 16170000
G7: 지정기부금 (지정, 코드40) | O7: 2013년 | W7: 0 | AK7: 지정기부금 한도계산을 위한 소득금액 | AS7: =IF(W7="",0,MIN(W7,AK13-AS5)) -> 0
G8: 지정기부금 (종교단체, 코드41) | O8: 2013년 | W8: 0 | AK8: =MAX((AK10-AS10-AS11-AS12),0) -> 16170000 | AS8: =IF(W8="",0,MIN(W8,AK14-AS5-AS7)) -> 0
B9: 구분 | G9: 기부금의 구분 | O9: 기부금의 지출연도 | W9: 기부금액 | AD9: 기부금합계 | AK9: 한도액 | AS9: 소득공제대상 (이월포함) | AZ9: 세액공제대상 (이월제외) | BG9: 세액공제액
B10: 기부금 세액공제 | G10: 정치자금기부금 (조특법76, 코드20) | O10: 2018년 | AD10: =W10 -> 0 | AK10: =영수증!Q65 -> 16170000 | AS10: =MIN(AD10,AK10) -> 0 | AZ10: =MIN(AK10,AS10) -> 0 | BG10: =ROUNDDOWN(IF(AZ10<=29900000,(AZ10*0.15),(AZ10-29900000)*0.25+4485000),0) -> 0
G11: 법정기부금 (법정, 코드10) | O11: 2014년~2018년 | AD11: =W11 -> 0 | AK11: =MAX(AK10-AS10,0) -> 16170000 | AS11: =MIN(AD11,AK11) -> 0 | AZ11: =MAX((AS11-AS5),0) -> 0 | BG11: =IF(BG15=0,0,ROUNDDOWN((AZ11/AZ15)*BG15,0)) -> 0
G12: 우리사주기부금 (조특법88의4, 코드42) | O12: 2018년 | W12: 0 | AD12: =W12 -> 0 | AK12: =MAX((AK10-AS10-AS11)*0.3,0) -> 4851000 | AS12: =MIN(AD12,AK12) -> 0 | AZ12: =MAX((AS12-AS6),0) -> 0 | BG12: =IF(BG15=0,0,ROUNDDOWN((AZ12/AZ15)*BG15,0)) -> 0
G13: 지정기부금 (지정, 코드40) | O13: 2014년~2018년 | W13: 0 | AD13: =W7+W13 -> 0 | AK13: =IF(AD14>0,(AK8*0.1)+MIN((AK8*0.2),W13),AK8*0.3) -> 4851000 | AS13: =MIN(AD13,AK13) -> 0 | AZ13: =MAX(((AS13-AS7)+(AS14-AS8)),0) -> 0 | BG13: =IF(BG15=0,0,ROUNDDOWN((AZ13/AZ15)*BG15,0)) -> 0
G14: 지정기부금 (종교단체, 코드41) | O14: 2014년~2018년 | W14: 0 | AD14: =W8+W14 -> 0 | AK14: =AK13 -> 4851000 | AS14: =MIN(AD14,AK14-AS13) -> 0
G15: 0 | W15: 0 | AS15: =SUM(AS10:AY14) -> 0 | AZ15: =SUM(AZ11:BF14) -> 0 | BG15: =ROUNDDOWN(IF(AZ15<=20000000,(AZ15*0.15),(AZ15-20000000)*0.3+3000000),0) -> 0

Sheet 감면
C7: 세액감면 | G7: 감면액 계산 테이블
C8: 구 분 | D8: 감면세액 계산식 | E8: 감면세액 | H8: 산출세액 | I8: 감면대상금액 (입력) | J8: 총급여액 또는 종합소득금액 | K8: 감면율 | L8: 감면세액
C9: 해외조광권자 등이 외국인에게 지급하는 급여 | D9: 종합소득산출세액×(감면대상근로소득금액÷종합소득금액) | G9: 조광권자 | H9: =#REF! ->  | J9: 1 | L9: =(H9*I9/J9)*K9 -> 
C10: 중소기업 취업자 세액감면 (조세특례제한법 제30조) | D10: 산출세액 ×(감면대상총급여액 ÷총급여액)×(50%,70%,90%,100%) | E10: =L10 -> 0 | G10: 중소기업 취업자 | H10: =영수증!AL65 -> 53772 | I10: 0 | J10: =영수증!Q63 -> 25200000 | K10: 0.7 | L10: =ROUNDDOWN((H10*I10/J10)*K10,0) -> 0 | M10: =ROUNDDOWN(MAX(0, MIN(영수증!AJ71,영수증!AK71))*(1-(감면!I10*감면!K10)/영수증!Q63),0) -> 29574
C13: 감면대상자/취업일 | D13: 감면율
C14: 청년 '12~'13년 | D14: 100%(한도없음). 단 '18년 이후 90%(150만원 한도)
C15: 청년 '14~'15년 | D15: 50%(한도없음). 단 '18년 이후 90%(150만원 한도)
C16: 청년 '16~'17년 | D16: 70%(한도없음). 단 '18년 이후 90%(150만원 한도)
C17: 청년 '18~'21년 | D17: 90%(150만원 한도)
C18: 60세이상자 장애인 '14~'15년 | D18: 50%(한도없음)
C19: 60세이상자 장애인 '16~'21년 | D19: 70%(150만원 한도)
C20: 경력단절여성 '17~'21년 | D20: 70%(150만원 한도)

Sheet 영수증
B2: ■ 소득세법 시행규칙 [별지 제24호서식(1)] <개정(안) 2019. 12. 31.> | AR2: (제1쪽)
C4: 관리 번호 | AH4: 거주구분 | AL4: 거주자1 | AP4: 비거주자2
R5: 근로소득 원천징수영수증 | AH5: 거주지국 | AK5: =신고서!AH10 -> 한국 | AM5: 거주지국코드 | AQ5: =신고서!AQ10 -> KR
R6: 근 로 소 득 지 급 명 세 서 | AH6: 내외국인 | AK6: TRUE | AL6: 내국인1 | AO6: =IF(#REF!=9,TRUE,FALSE) ->  | AP6: 외국인9
AH7: 외국인단일세율적용 | AN7: FALSE | AO7: 여1 | AP7: TRUE | AQ7: 부2
N8: ( | P8: 소득자보관용 | U8: 발행자보관용 | AA8: 발행자보고용) | AH8: 외국법인소속파견근로자여부 | AN8: FALSE | AO8: 여1 | AP8: TRUE | AQ8: 부2
AH9: 국적 | AK9: =신고서!AH7 -> 한국 | AM9: 국적코드 | AQ9: =신고서!AQ7 -> KR
AH10: 세대주여부 | AL10: 세대주1 | AP10: 세대원2
AH11: 연말정산구분 | AL11: 계속근로1, 중도퇴사2
B13: 징수 의무자 | G13: (1) 법 인 명 (상 호) | P13: =기본사항!$G$14 -> (주)조세통람 | AA13: (2) 대 표 자(성명) | AI13: =기본사항!$G$15 -> 김철수
G14: (3) 사업자등록번호 | P14: =기본사항!$G$16 -> 203-81-11111 | AA14: (4) 주 민 등 록 번 호 | AI14: =기본사항!$G$17 -> 123456-1234567
G15: (3)-1 사업자단위과세자 여부 | P15: 여1 / 부1 | V15: FALSE | AA15: (3)-2 종사업장 일련번호
G16: (5) 소 재 지 (주 소) | P16: =기본사항!$G$18 -> 서울 중구 동호로14길 5-6 | V16: TRUE
B17: 소득자 | G17: (6) 성 명 | P17: =기본사항!$G$7 -> 이영화 | AA17: (7) 주 민 등 록 번 호 | AI17: =기본사항!$G$8 -> 123456-1234567
G18: (8) 주 소 | P18: =기본사항!$G$9 -> 서울 중구 다산로11길 25
B20: Ⅰ 근무처별소득명세 | C20: 구 분 | P20: 주(현) | U20: 종(전) | AA20: 종(전) | AG20: (16)-1납세조합 | AM20: 합 계
C21: (9) 근 무 처 명 | P21: =P13 -> (주)조세통람 | U21: =급여내역!M22 -> ㈜우인 | AA21: =급여내역!M29 -> 0 | AG21: =급여내역!M36 -> 0
C22: (10) 사업자등록번호 | P22: =P14 -> 203-81-11111 | U22: =급여내역!AI22 -> 101-81-22222 | AA22: =급여내역!AI29 -> 0 | AG22: =급여내역!AI36 -> 0
C23: (11) 근무기간 | P23: =TEXT(급여내역!BG4,"yy/mm/dd")&"~"&TEXT(급여내역!BO4,"yy/mm/dd") -> 18/01/01~18/12/31 | U23: =IF(급여내역!BG22="","",TEXT(급여내역!BG22,"yy/mm/dd")&"~"&TEXT(급여내역!BO22,"yy/mm/dd")) ->  | AA23: =IF(급여내역!BG29="","",TEXT(급여내역!BG29,"yy/mm/dd")&"~"&TEXT(급여내역!BO29,"yy/mm/dd")) ->  | AG23: =IF(급여내역!BG36="","",TEXT(급여내역!BG36,"yy/mm/dd")&"~"&TEXT(급여내역!BO36,"yy/mm/dd")) ->  | AM23: ~
C24: (12) 감면기간 | P24: ~ | U24: ~ | AA24: ~ | AG24: ~ | AM24: ~
C25: (13) 급 여 | P25: =급여내역!H20 -> 25200000 | U25: =급여내역!H26 -> 0 | AA25: =급여내역!H33 -> 0 | AG25: =급여내역!H40 -> 0 | AM25: =SUM(P25:AL25) -> 25200000
C26: (14) 상 여 | P26: =급여내역!M20 -> 0 | U26: =급여내역!M26 -> 0 | AA26: =급여내역!M33 -> 0 | AG26: =급여내역!M40 -> 0 | AM26: 0
C27: (15) 인 정 상 여 | P27: =급여내역!Q20 -> 0 | U27: =급여내역!Q26 -> 0 | AA27: =급여내역!Q33 -> 0 | AG27: =급여내역!Q40 -> 0 | AM27: 0
C28: (15)-1 주식매수선택권 행사이익 | P28: =급여내역!U20 -> 0 | U28: =급여내역!U26 -> 0 | AA28: =급여내역!U33 -> 0 | AG28: =급여내역!U40 -> 0 | AM28: 0
C29: (15)-2 우리사주조합인출금 | P29: =급여내역!V20 -> 0 | U29: =급여내역!V26 -> 0 | AA29: =급여내역!V33 -> 0 | AG29: =급여내역!V40 -> 0 | AM29: 0
C30: (15)-3 임원 퇴직소득금액 한도초과액 | P30: =급여내역!W20 -> 0 | U30: =급여내역!W26 -> 0 | AA30: =급여내역!W33 -> 0 | AG30: =급여내역!W40 -> 0 | AM30: 0
C31: (15)-4 직무발명보상금 | P31: =급여내역!X20 -> 0 | U31: =급여내역!X26 -> 0 | AA31: =급여내역!X33 -> 0 | AG31: =급여내역!X40 -> 0 | AM31: 0
C32: (16) 계 | P32: =SUM(P25:T31) -> 25200000 | U32: =SUM(U25:Z31) -> 0 | AA32: =SUM(AA25:AF31) -> 0 | AG32: =SUM(AG25:AL31) -> 0 | AM32: =SUM(AM25:AR31) -> 25200000
B33: Ⅱ 비과세및감면소득명세 | C33: (18) 국외근로 | M33: M0X | P33: =급여내역!BB20 -> 0 | U33: =급여내역!BB26 -> 0 | AA33: =급여내역!BB33 -> 0 | AG33: =급여내역!BB40 -> 0 | AM33: =SUM(P33:AL33) -> 0
C34: (18)-1 야간근로수당 | M34: O0X | P34: =급여내역!BK20 -> 0 | U34: =급여내역!BK26 -> 0 | AA34: =급여내역!BK33 -> 0 | AG34: =급여내역!BK40 -> 0 | AM34: =SUM(P34:AL34) -> 0
C35: (18)-2 출산.보육수당 | M35: Q0X | P35: =급여내역!BO20 -> 0 | U35: =급여내역!BO26 -> 0 | AA35: =급여내역!BO33 -> 0 | AG35: =급여내역!BO40 -> 0 | AM35: =SUM(P35:AL35) -> 0
C36: (18)-4 연구보조비 | M36: H0X | P36: =급여내역!BF20 -> 0 | U36: =급여내역!BF26 -> 0 | AA36: =급여내역!BF33 -> 0 | AG36: =급여내역!BF40 -> 0 | AM36: 0
C37: (18)-5 | AM37: 0
C38: (18)-6 | AM38: 0
C39: ~ | AM39: 0
C40: (18)-33 | AM40: 0
C41: (18)-34 | AM41: =SUM(P41:AL41) -> 0
C42: (19) 수련보조수당 | M42: Y22 | AM42: 0
C43: (20) 비과세소득 계 | P43: =SUM(P33:T42) -> 0 | U43: =SUM(U33:Z42) -> 0 | AA43: =SUM(AA33:AF42) -> 0 | AG43: =SUM(AG33:AL42) -> 0 | AM43: =SUM(P43:AL43) -> 0
C44: (20)-1 감면소득 계
B45: Ⅲ 세액명세 | C45: 구 분 | T45: (78) 소 득 세 | AC45: (79) 지 방 소 득 세 | AJ45: (80) 농 어 촌 특 별 세
C46: (72) 결 정 세 액 | T46: =AL109 -> 0 | AC46: =ROUNDDOWN(T46*0.1,0) -> 0 | AJ46: =ROUNDDOWN(AL104*0.2,0) -> 0
C47: 기납부세액 | E47: (73)종(전)근무지(결정세액란의 세액기재) | I47: 사업자등록번호 | K47: =급여내역!AI22 -> 101-81-22222 | T47: =급여내역!AL26 -> 0 | AC47: =급여내역!AP26 -> 0 | AJ47: =급여내역!AT26 -> 0
K48: =급여내역!AI29 -> 0 | T48: =급여내역!AL33 -> 0 | AC48: =급여내역!AP33 -> 0 | AJ48: =급여내역!AT33 -> 0
K49: =급여내역!AI36 -> 0 | T49: =급여내역!AL40 -> 0 | AC49: =급여내역!AP40 -> 0 | AJ49: =급여내역!AT40 -> 0
E50: (74)주(현)근무지 | T50: =급여내역!AL20 -> 272880 | AC50: =급여내역!AP20 -> 27240 | AJ50: =급여내역!AT20 -> 0
C51: (75) 납부특례세액
C52: (76)차감징수세액((72)-(73)-(74)-(75)) | T52: =IF(ROUNDDOWN(T46-T47-T48-T49-T50-T51,-1)<0,ROUNDDOWN(T46-T47-T48-T49-T50-T51,-1),IF(ROUNDDOWN(T46-T47-T48-T49-T50-T51,-1)>=1000,ROUNDDOWN(T46-T47-T48-T49-T50-T51,-1),0)) -> -272880 | AC52: =IF(ROUNDDOWN(AC46-AC47-AC48-AC49-AC50-AC51,-1)<0,ROUNDDOWN(AC46-AC47-AC48-AC49-AC50-AC51,-1),IF(ROUNDDOWN(AC46-AC47-AC48-AC49-AC50-AC51,-1)>=1000,ROUNDDOWN(AC46-AC47-AC48-AC49-AC50-AC51,-1),0)) -> -27240 | AJ52: =IF(ROUNDDOWN(AJ46-AJ47-AJ48-AJ49-AJ50-AJ51,-1)<0,ROUNDDOWN(AJ46-AJ47-AJ48-AJ49-AJ50-AJ51,-1),IF(ROUNDDOWN(AJ46-AJ47-AJ48-AJ49-AJ50-AJ51,-1)>=1000,ROUNDDOWN(AJ46-AJ47-AJ48-AJ49-AJ50-AJ51,-1),0)) -> 0
K53: 위의 원천징수액(근로소득)을 정히 영수(지급)합니다
M55: =기본사항!G19 -> 2020-02-28
X56: 징수(보고)의무자 | AF56: =기본사항!G15 -> 김철수 | AQ56: (서명 또는 인)
E58: =기본사항!G20 -> 중부세무서장 | M58: 귀하
AR61: 210㎜×297㎜
AR62: (제2쪽)
B63: Ⅳ 정 산 명 세 | C63: (21) 총 급 여 ((16), 다만 외국인단일세율 적용시에는 연간 근로소득) | Q63: =AM32 -> 25200000 | X63: (48) 종합소득과세표준 | AL63: =Q95-Q108+Q109 -> 896200
C64: (22) 근 로 소 득 공 제 | Q64: =ROUNDDOWN(IF(Q63>100000000,(Q63*0.02+12750000),IF(Q63>45000000,(Q63*0.05+9750000),IF(Q63>15000000,(Q63*0.15+5250000),IF(Q63>5000000,(Q63*0.4+1500000),IF(Q63>0,(Q63*0.7)))))),0) -> 9030000
C65: (23) 근 로 소 득 금 액 | Q65: =Q63-Q64 -> 16170000 | X65: (49) 산 출 세 액 | AL65: =ROUNDDOWN(IF(AL63>500000000,(AL63*0.42-35400000),IF(AL63>300000000,(AL63*0.4-25400000),IF(AL63>150000000,(AL63*0.38-19400000),IF(AL63>88000000,(AL63*0.35-14900000),IF(AL63>46000000,(AL63*0.24-5220000),IF(AL63>12000000,(AL63*0.15-1080000),IF(AL63>0,(AL63*0.06)))))))),0) -> 53772
C66: 종합소득공제 | D66: 기 본 공 제 | G66: (24) 본인 | Q66: =MIN(IF(인적공제!E7="","",1500000),Q65) -> 1500000 | X66: 세 액 감 면 | AA66: (50) 소 득 세 법 | AL66: 0
G67: (25) 배우자 | Q67: =MIN(IF(인적공제!N8=0,0,1500000),MAX(Q65-Q66,0)) -> 1500000 | AA67: (51) 조세특례제한법((52) 제외) | AL67: 0
G68: (26) 부양가족 ( | M68: =인적공제!G17-인적공제!G7-인적공제!N8 -> 3 | N68: ) | O68: 명 | Q68: =MIN((M68*1500000),MAX(Q65-SUM(Q66:W67))) -> 4500000 | AA68: (52) 조세특례제한법 제30조 | AL68: =IF(감면!E10="",0,MIN(감면!E10,MAX((AL65-SUM(AL66:AR67)),0))) -> 0
D69: 추 가 공 제 | G69: (27) 경로우대 ( | M69: =인적공제!M17 -> 1 | N69: ) | O69: 명 | Q69: =MIN(M69*1000000,MAX(Q65-SUM(Q66:W68),0)) -> 1000000 | AA69: (53) 조 세 조 약 | AL69: 0
G70: (28) 장애인 ( | L70: =인적공제!K17 -> 0 | M70: ) | N70: 명 | Q70: =MIN(L70*2000000,MAX(Q65-SUM(Q66:W69),0)) -> 0 | AA70: (54) 세 액 감 면 계 | AL70: =SUM(AL66:AR69) -> 0
G71: (29) 부녀자 | Q71: =IF(Q65<=30000000,MIN(IF(인적공제!O8=1,500000,0),MAX(Q65-SUM(Q66:W70),0)),0) -> 0 | X71: 세 액 공 제 | AA71: (55) 근로소득 | AJ71: =ROUNDDOWN(IF(AL65>1300000,(AL65*0.3+325000),AL65*0.55),0) -> 29574 | AK71: =ROUNDDOWN(IF(Q63>70000000,MAX(500000,(660000-(Q63-70000000)*0.5)),IF(Q63>33000000,MAX(660000,(740000-(Q63-33000000)*0.008)),740000)),0) -> 740000 | AL71: =IF(AL68>0,감면!M10,MIN(MIN(AJ71,AK71),MAX((AL65-AL70),0))) -> 29574
G72: (30) 한 부 모 가 족 | Q72: =MIN(IF(인적공제!O9=1,1000000,0),MAX(Q65-SUM(Q66:W71),0)) -> 0 | AA72: (56) 자녀 | AC72: 공제대상자녀 | AH72: ( | AI72: =인적공제!O7 -> 3 | AJ72: ) | AK72: 명 | AL72: =MIN(IF(AI72=1,150000,IF(AI72=2,300000,IF(AI72>2,((AI72-2)*300000+300000),0))),MAX((AL65-AL70-AL71),0)) -> 24198
D73: 연 금 보 험 료 공 제 | G73: (31) 국민연금보험료 | Q73: =MIN(신고서!AP86+신고서!AP87,MAX(Q65-SUM(Q66:W72),0)) -> 1134000
G74: (32) 공적 연금 보험료공제 | I74: ㉮공무원연금 | Q74: =MIN(신고서!AP88+신고서!AP89,MAX(Q65-SUM(Q66:W73),0)) -> 300000 | AC74: 출산·입양자 | AH74: ( | AI74: =인적공제!I17 -> 0 | AJ74: ) | AK74: 명 | AL74: =IF(AI74>=1,인적공제!J17*100000,0) -> 0
I75: ㉯군인연금 | AA75: 연금 계좌 | AC75: (57)과학기술인 공제 | AH75: 공제대상금액 | AL75: =신고서!AJ150 -> 0
I76: ㉰사립학교교직원연금 | AH76: 세액공제액 | AL76: =IF(Q63<=55000000,ROUNDDOWN(AL75*0.15,0),ROUNDDOWN(AL75*0.12,0)) -> 0
I77: ㉱별정우체국연금 | AC77: (58)「근로자퇴직급여 보장법」에 따른 퇴직연금 | AH77: 공제대상금액 | AL77: =신고서!AJ151 -> 0
D78: 특 별 소 득 공 제 | G78: (33) 보험료 | I78: ㉮건강보험료 (노인장기요양보험료포함) | Q78: =MIN(신고서!AP91+신고서!AP92,MAX(Q65-SUM(Q66:W77),0)) -> 933200 | AH78: 세액공제액 | AL78: =IF(Q63<=55000000,ROUNDDOWN(AL77*0.15,0),ROUNDDOWN(AL77*0.12,0)) -> 0
I79: ㉯고용보험료 | Q79: =MIN(신고서!AP93+신고서!AP94,MAX(Q65-SUM(Q66:W78),0)) -> 201600 | AC79: (59)연금저축 | AH79: 공제대상금액 | AL79: =신고서!AJ152 -> 0
G80: (34) 주택 자금 | I80: ㉮주택임차차입금원리금상환액 | M80: 대출기관 | Q80: =MIN(신고서!AP96,MAX(Q65-SUM(Q66:W79),0)) -> 1520000 | AH80: 세액공제액 | AL80: =IF(Q63<=55000000,ROUNDDOWN(AL79*0.15,0),ROUNDDOWN(AL79*0.12,0)) -> 0
AA81: 특별세액공제 | AC81: (60) 보험료 | AE81: 보장성 | AH81: 공제대상금액 | AL81: =신고서!AJ154 -> 0
M82: 거주자 | Q82: =MIN(신고서!AP97,MAX(Q65-SUM(Q66:W80),0)) -> 0 | AH82: 세액공제액 | AL82: =신고서!AR154 -> 0
AE83: 장애인 전용 보장성 | AH83: 공제대상금액 | AL83: =신고서!AJ155 -> 0
I84: ㉯ 장기 주택 저당 차입금 이자 상환액 | K84: 2011년이전차입분 | M84: 15년미만 | Q84: =MIN(신고서!AP98,MAX(Q65-SUM(Q66:W83),0)) -> 0 | AH84: 세액공제액 | AL84: =신고서!AR155 -> 0
M85: 15년~29년 | Q85: =MIN(신고서!AP99,MAX(Q65-SUM(Q66:W84),0)) -> 0 | AC85: (61)의료비 | AH85: 공제대상금액 | AL85: =신고서!AJ161 -> 0
M86: 30년이상 | Q86: =MIN(신고서!AP100,MAX(Q65-SUM(Q66:W85),0)) -> 0 | AH86: 세액공제액 | AL86: =신고서!AR161 -> 0
K87: 2012년이후차입분(15년이상) | M87: 고정금리이거나 비거치상환대출 | Q87: =MIN(신고서!AP101,MAX(Q65-SUM(Q66:W86),0)) -> 0 | AC87: (62)교육비 | AH87: 공제대상금액 | AL87: =신고서!AJ168 -> 0
M88: 그 밖의 대출 | Q88: =MIN(신고서!AP102,MAX(Q65-SUM(Q66:W87),0)) -> 0 | AH88: 세액공제액 | AL88: =신고서!AR168 -> 0
K89: 2015년 이후 차입분 | M89: 15년 이상 | N89: 고정금리이면서, 비거치상환 | Q89: =MIN(신고서!AP103,MAX(Q65-SUM(Q66:W88),0)) -> 0 | AC89: (63)기부금 | AD89: ㉮ 정치자금기부금 | AF89: 10만원이하 | AH89: 공제대상금액 | AL89: =신고서!AJ169 -> 0
N90: 고정금리이거나, 비거치상환 | Q90: =MIN(신고서!AP104,MAX(Q65-SUM(Q66:W89),0)) -> 0 | AH90: 세액공제액 | AL90: =신고서!AR169 -> 0
N91: 그 밖의 대출 | Q91: =MIN(신고서!AP105,MAX(Q65-SUM(Q66:W90),0)) -> 0 | AF91: 10만원초과 | AH91: 공제대상금액 | AL91: =신고서!AJ170 -> 0
M92: 10년~15년 | N92: 고정금리이거나, 비거치상환 | Q92: =MIN(신고서!AP106,MAX(Q65-SUM(Q66:W91),0)) -> 0 | AH92: 세액공제액 | AL92: =신고서!AR170 -> 0
G93: (35) 기부금(이월분) | Q93: =MIN(신고서!AP111,MAX(Q65-SUM(Q66:W89),0)) -> 0 | AD93: ㉯ 법정기부금 | AH93: 공제대상금액 | AL93: =신고서!AJ171 -> 0
G94: (36) 계 | Q94: =IF(Q65=0,0,SUM(Q78:W93)) -> 2654800 | AH94: 세액공제액 | AL94: =신고서!AR171 -> 0
C95: (37) 차 감 소 득 금 액 | Q95: =MAX(0,Q65-SUM(Q66:W77)-Q94) -> 3581200 | AD95: ㉰ 우리사주 조합기부금 | AH95: 공제대상금액 | AL95: =신고서!AJ172 -> 0
C96: 그 밖 의 소 득 공 제 | E96: (38) 개인연금저축 | Q96: =MIN(신고서!AP112,Q95) -> 0 | AH96: 세액공제액 | AL96: =신고서!AR172 -> 0
E97: (39)소기업·소상공인공제부금 | Q97: =MIN(신고서!AP113,MAX((Q95-Q96),0)) -> 0 | AD97: ㉱ 지정기부금 (종교단체외) | AH97: 공제대상금액 | AL97: =신고서!AJ173 -> 0
E98: (40)주택 마련저축소득공제 | I98: ㉮청약저축 | Q98: =MIN(신고서!$AP$114,MAX((Q95-SUM(Q96:Q97)),0)) -> 0 | AH98: 세액공제액 | AL98: =신고서!AR173 -> 0
AD99: ㉲ 지정기부금 (종교단체) | AH99: 공제대상금액 | AL99: =신고서!AJ174 -> 0
I100: ㉯주택청약종합저축 | Q100: =MIN(신고서!$AP$116,MAX((Q95-SUM(Q96:Q98)),0)) -> 0 | AH100: 세액공제액 | AL100: =신고서!AR174 -> 0
I101: ㉰근로자주택마련저축 | Q101: =MIN(신고서!$AP$115,MAX((Q95-SUM(Q96:Q100)),0)) -> 0 | AC101: (64)계 | AL101: =AL82+AL84+AL86+AL88+AL90+AL92+AL94+AL96+AL98+AL100 -> 0
E102: (41)투자조합출자 등 | Q102: =MIN(신고서!AP121,MAX((Q95-SUM(Q96:Q101)),0)) -> 0 | AC102: (65)표준세액공제 | AK102: =(Q78+SUM(Q80:W83)+SUM(Q84:W93))*0.12+AL82+AL84+AL86+AL88+AL94+AL98+AL100+AL107 -> 294384 | AL102: =IF(AK102>130000,"",130000) -> 
E103: (42)신용카드등 사용액 | Q103: =MIN(신고서!$AP$128,MAX((Q95-SUM(Q96:Q102)),0)) -> 2685000 | AA103: (66) 납 세 조 합 공 제 | AL103: =급여내역!P42 -> 0
E104: (43) 우리사주조합 출연금 | Q104: =MIN(신고서!$AP$136,MAX((Q95-SUM(Q96:Q103)),0)) -> 0 | AA104: (67) 주 택 차 입 금 | AL104: =신고서!AP182 -> 0
AA105: (68) 외 국 납 부 | AL105: =IF(Q65=0,0,MIN(신고서!AD178,(AL65*(신고서!AP176/영수증!Q65)))) -> 0
E106: (44)고용유지 중소기업 근로자 | Q106: =MIN(신고서!$AP$138,MAX((Q95-SUM(Q96:Q105)),0)) -> 0 | AA106: (69) 월세액 | AH106: 공제대상금액 | AL106: =신고서!AD183 -> 0
E107: (45)장기집합투자증권저축 | Q107: =MIN(신고서!AP140,MAX((Q95-SUM(Q96:Q106)),0)) -> 0 | AH107: 세액공제액 | AL107: =신고서!AP183 -> 0
E108: (46)그밖의소득공제 계 | Q108: =SUM(Q96:W107) -> 2685000 | AA108: (70) 세액공제 계 | AL108: =MIN((AL71+AL72+AL74+AL76+AL78+AL80+MAX(AL101,AL102)+AL103+AL104+AL105+AL107),MAX(0,(AL65-AL70))) -> 53772
C109: (47) 소득공제 종합한도 초과액 | Q109: =MAX((SUM(Q80:W93)+SUM(Q97:W104)-Q102+Q107)-25000000,0) -> 0 | X109: (71) 결 정 세 액( (49)-(54)-(70) ) | AL109: =MAX(AL65-AL70-AL108,0) -> 0
AR110: 210㎜×297㎜
B111: (77)소득ㆍ세액공제 명세[인적공제항목은 해당란에 “○”표시(장애인 해당 시 해당 코드 기재)를 하며, 각종 소득공제ㆍ세액공제 항목은 공제를 위하여 실제 지출한 금액을 적습니다.]
B113: 인적공제항목 | U113: 각종 소득공제ㆍ세액공제 항목
B114: 관계코드 | E114: 성명 | K114: 기본공제 | Q114: 경로우대 | S114: 출산입양 | U114: 자료 구분 | X114: 보험료 | AF114: 의료비 | AO114: 교육비
B115: 내ㆍ외 국인 | E115: 주민등록번호 | K115: 부녀자 | N115: 한부모 | Q115: 장애인 | S115: 6세이하 | X115: 건강 | Z115: 고용 | AB115: 보장성 | AD115: 장애인 전용 보장성 | AF115: 일반 | AH115: 난임 | AJ115: 65세이상•장애인 건강보험산정 특례자 | AM115: 실손의료 보험금 | AO115: 일반 | AQ115: 장애인 특수교육
B116: 인적공제 항목에 해당하는 | K116: =신고서!L17 -> 5 | Q116: =신고서!R17 -> 1 | S116: =신고서!U17 -> 0 | U116: 국세청계 | X116: =신고서!AB17 -> 0 | Z116: =신고서!AD17 -> 0 | AB116: =신고서!AF17 -> 0 | AD116: =신고서!AH17 -> 0 | AF116: =신고서!AJ17 -> 0 | AH116: =신고서!AL17 -> 0 | AJ116: =신고서!AN17 -> 0 | AM116: =신고서!AP17 -> 0 | AO116: =신고서!AR17 -> 0 | AQ116: =신고서!AT17 -> 0
B117: 인원수를 기재 (자녀: | I117: =신고서!J18 -> 3 | J117: 명) | K117: =신고서!L18 ->  | N117: =신고서!O18 ->  | Q117: =신고서!R18 -> 0 | S117: =신고서!U18 -> 1 | U117: 기타계 | X117: =신고서!AB18 -> 883200 | Z117: =신고서!AD18 -> 201600 | AB117: =신고서!AF18 -> 0 | AD117: =신고서!AH18 -> 0 | AF117: =신고서!AJ18 -> 0 | AH117: =신고서!AL18 -> 0 | AJ117: =신고서!AN18 -> 0 | AM117: =신고서!AP18 -> 0 | AO117: =신고서!AR18 -> 0 | AQ117: =신고서!AT18 -> 0
B118: =신고서!C19 -> 0 | E118: =신고서!F19 -> 이영화 | K118: =신고서!L19 -> ○ | Q118: =신고서!R19 -> 0 | S118: =신고서!U19 -> 0 | U118: 국세청 | X118: =신고서!AB19 -> 0 | Z118: =신고서!AD19 -> 0 | AB118: =신고서!AF19 -> 0 | AD118: =신고서!AH19 -> 0 | AF118: =신고서!AJ19 -> 0 | AH118: =신고서!AL19 -> 0 | AJ118: =신고서!AN19 -> 0 | AM118: =신고서!AP19 -> 0 | AO118: =신고서!AR19 -> 0 | AQ118: =신고서!AT19 -> 0
B119: =신고서!C20 -> 1 | E119: =신고서!F20 -> (근로자 본인) | K119: =신고서!L20 -> 0 | N119: =신고서!O20 -> 0 | Q119: =신고서!R20 -> 0 | S119: =신고서!U20 -> 0 | U119: 기타 | X119: =신고서!AB20 -> 883200 | Z119: =신고서!AD20 -> 201600 | AB119: =신고서!AF20 -> 0 | AD119: =신고서!AH20 -> 0 | AF119: =신고서!AJ20 -> 0 | AH119: =신고서!AL20 -> 0 | AJ119: =신고서!AN20 -> 0 | AM119: =신고서!AP20 -> 0 | AO119: =신고서!AR20 -> 0 | AQ119: =신고서!AT20 -> 0
B120: =신고서!C21 -> 3 | E120: =신고서!F21 -> 조세희 | K120: =신고서!L21 -> ○ | Q120: =신고서!R21 -> 0 | S120: =신고서!U21 -> 0 | U120: 국세청 | X120: =신고서!AB21 -> 0 | Z120: =신고서!AD21 -> 0 | AB120: =신고서!AF21 -> 0 | AD120: =신고서!AH21 -> 0 | AF120: =신고서!AJ21 -> 0 | AH120: =신고서!AL21 -> 0 | AJ120: =신고서!AN21 -> 0 | AM120: =신고서!AP21 -> 0 | AO120: =신고서!AR21 -> 0 | AQ120: =신고서!AT21 -> 0
B121: =신고서!C22 -> 1 | E121: =신고서!F22 -> 710415-2031653 | K121: =신고서!L22 -> 0 | N121: =신고서!O22 -> 0 | Q121: =신고서!R22 -> 0 | S121: =신고서!U22 -> 0 | U121: 기타 | X121: =신고서!AB22 -> 0 | Z121: =신고서!AD22 -> 0 | AB121: =신고서!AF22 -> 0 | AD121: =신고서!AH22 -> 0 | AF121: =신고서!AJ22 -> 0 | AH121: =신고서!AL22 -> 0 | AJ121: =신고서!AN22 -> 0 | AM121: =신고서!AP22 -> 0 | AO121: =신고서!AR22 -> 0 | AQ121: =신고서!AT22 -> 0
B122: =신고서!C23 -> 1 | E122: =신고서!F23 -> 편람일 | K122: =신고서!L23 -> ○ | Q122: =신고서!R23 -> ○ | S122: =신고서!U23 -> 0 | U122: 국세청 | X122: =신고서!AB23 -> 0 | Z122: =신고서!AD23 -> 0 | AB122: =신고서!AF23 -> 0 | AD122: =신고서!AH23 -> 0 | AF122: =신고서!AJ23 -> 0 | AH122: =신고서!AL23 -> 0 | AJ122: =신고서!AN23 -> 0 | AM122: =신고서!AP23 -> 0 | AO122: =신고서!AR23 -> 0 | AQ122: =신고서!AT23 -> 0
B123: =신고서!C24 -> 1 | E123: =신고서!F24 -> 481103-2019015 | K123: =신고서!L24 -> 0 | N123: =신고서!O24 -> 0 | Q123: =신고서!R24 -> 0 | S123: =신고서!U24 -> 0 | U123: 기타 | X123: =신고서!AB24 -> 0 | Z123: =신고서!AD24 -> 0 | AB123: =신고서!AF24 -> 0 | AD123: =신고서!AH24 -> 0 | AF123: =신고서!AJ24 -> 0 | AH123: =신고서!AL24 -> 0 | AJ123: =신고서!AN24 -> 0 | AM123: =신고서!AP24 -> 0 | AO123: =신고서!AR24 -> 0 | AQ123: =신고서!AT24 -> 0
B124: =신고서!C25 -> 4 | E124: =신고서!F25 -> 이대한 | K124: =신고서!L25 -> ○ | Q124: =신고서!R25 -> 0 | S124: =신고서!U25 -> 0 | U124: 국세청 | X124: =신고서!AB25 -> 0 | Z124: =신고서!AD25 -> 0 | AB124: =신고서!AF25 -> 0 | AD124: =신고서!AH25 -> 0 | AF124: =신고서!AJ25 -> 0 | AH124: =신고서!AL25 -> 0 | AJ124: =신고서!AN25 -> 0 | AM124: =신고서!AP25 -> 0 | AO124: =신고서!AR25 -> 0 | AQ124: =신고서!AT25 -> 0
B125: =신고서!C26 -> 1 | E125: =신고서!F26 -> 091206-4059631 | K125: =신고서!L26 -> 0 | N125: =신고서!O26 -> 0 | Q125: =신고서!R26 -> 0 | S125: =신고서!U26 -> 0 | U125: 기타 | X125: =신고서!AB26 -> 0 | Z125: =신고서!AD26 -> 0 | AB125: =신고서!AF26 -> 0 | AD125: =신고서!AH26 -> 0 | AF125: =신고서!AJ26 -> 0 | AH125: =신고서!AL26 -> 0 | AJ125: =신고서!AN26 -> 0 | AM125: =신고서!AP26 -> 0 | AO125: =신고서!AR26 -> 0 | AQ125: =신고서!AT26 -> 0
B126: =신고서!C27 -> 4 | E126: =신고서!F27 -> 이민국 | K126: =신고서!L27 -> ○ | Q126: =신고서!R27 -> 0 | S126: =신고서!U27 -> 0 | U126: 국세청 | X126: =신고서!AB27 -> 0 | Z126: =신고서!AD27 -> 0 | AB126: =신고서!AF27 -> 0 | AD126: =신고서!AH27 -> 0 | AF126: =신고서!AJ27 -> 0 | AH126: =신고서!AL27 -> 0 | AJ126: =신고서!AN27 -> 0 | AM126: =신고서!AP27 -> 0 | AO126: =신고서!AR27 -> 0 | AQ126: =신고서!AT27 -> 0
B127: =신고서!C28 -> 1 | E127: =신고서!F28 -> 151230-3059632 | K127: =신고서!L28 -> 0 | N127: =신고서!O28 -> 0 | Q127: =신고서!R28 -> 0 | S127: =신고서!U28 -> ○ | U127: 기타 | X127: =신고서!AB28 -> 0 | Z127: =신고서!AD28 -> 0 | AB127: =신고서!AF28 -> 0 | AD127: =신고서!AH28 -> 0 | AF127: =신고서!AJ28 -> 0 | AH127: =신고서!AL28 -> 0 | AJ127: =신고서!AN28 -> 0 | AM127: =신고서!AP28 -> 0 | AO127: =신고서!AR28 -> 0 | AQ127: =신고서!AT28 -> 0
B128: =신고서!C29 -> 0 | E128: =신고서!F29 -> 0 | K128: =신고서!L29 -> 0 | Q128: =신고서!R29 -> 0 | S128: =신고서!U29 -> 0 | U128: 국세청 | X128: =신고서!AB29 -> 0 | Z128: =신고서!AD29 -> 0 | AB128: =신고서!AF29 -> 0 | AD128: =신고서!AH29 -> 0 | AF128: =신고서!AJ29 -> 0 | AH128: =신고서!AL29 -> 0 | AJ128: =신고서!AN29 -> 0 | AM128: =신고서!AP29 -> 0 | AO128: =신고서!AR29 -> 0 | AQ128: =신고서!AT29 -> 0
B129: =신고서!C30 -> 0 | E129: =신고서!F30 -> 0 | K129: =신고서!L30 -> 0 | N129: =신고서!O30 -> 0 | Q129: =신고서!R30 -> 0 | S129: =신고서!U30 -> 0 | U129: 기타 | X129: =신고서!AB30 -> 0 | Z129: =신고서!AD30 -> 0 | AB129: =신고서!AF30 -> 0 | AD129: =신고서!AH30 -> 0 | AF129: =신고서!AJ30 -> 0 | AH129: =신고서!AL30 -> 0 | AJ129: =신고서!AN30 -> 0 | AM129: =신고서!AP30 -> 0 | AO129: =신고서!AR30 -> 0 | AQ129: =신고서!AT30 -> 0
B130: =신고서!C31 -> 0 | E130: =신고서!F31 -> 0 | K130: =신고서!L31 -> 0 | Q130: =신고서!R31 -> 0 | S130: =신고서!U31 -> 0 | U130: 국세청 | X130: =신고서!AB31 -> 0 | Z130: =신고서!AD31 -> 0 | AB130: =신고서!AF31 -> 0 | AD130: =신고서!AH31 -> 0 | AF130: =신고서!AJ31 -> 0 | AH130: =신고서!AL31 -> 0 | AJ130: =신고서!AN31 -> 0 | AM130: =신고서!AP31 -> 0 | AO130: =신고서!AR31 -> 0 | AQ130: =신고서!AT31 -> 0
B131: =신고서!C32 -> 0 | E131: =신고서!F32 -> 0 | K131: =신고서!L32 -> 0 | N131: =신고서!O32 -> 0 | Q131: =신고서!R32 -> 0 | S131: =신고서!U32 -> 0 | U131: 기타 | X131: =신고서!AB32 -> 0 | Z131: =신고서!AD32 -> 0 | AB131: =신고서!AF32 -> 0 | AD131: =신고서!AH32 -> 0 | AF131: =신고서!AJ32 -> 0 | AH131: =신고서!AL32 -> 0 | AJ131: =신고서!AN32 -> 0 | AM131: =신고서!AP32 -> 0 | AO131: =신고서!AR32 -> 0 | AQ131: =신고서!AT32 -> 0
B132: =신고서!C33 -> 0 | E132: =신고서!F33 -> 0 | K132: =신고서!L33 -> 0 | Q132: =신고서!R33 -> 0 | S132: =신고서!U33 -> 0 | U132: 국세청 | X132: =신고서!AB33 -> 0 | Z132: =신고서!AD33 -> 0 | AB132: =신고서!AF33 -> 0 | AD132: =신고서!AH33 -> 0 | AF132: =신고서!AJ33 -> 0 | AH132: =신고서!AL33 -> 0 | AJ132: =신고서!AN33 -> 0 | AM132: =신고서!AP33 -> 0 | AO132: =신고서!AR33 -> 0 | AQ132: =신고서!AT33 -> 0
B133: =신고서!C34 -> 0 | E133: =신고서!F34 -> 0 | K133: =신고서!L34 -> 0 | N133: =신고서!O34 -> 0 | Q133: =신고서!R34 -> 0 | S133: =신고서!U34 -> 0 | U133: 기타 | X133: =신고서!AB34 -> 0 | Z133: =신고서!AD34 -> 0 | AB133: =신고서!AF34 -> 0 | AD133: =신고서!AH34 -> 0 | AF133: =신고서!AJ34 -> 0 | AH133: =신고서!AL34 -> 0 | AJ133: =신고서!AN34 -> 0 | AM133: =신고서!AP34 -> 0 | AO133: =신고서!AR34 -> 0 | AQ133: =신고서!AT34 -> 0
B134: =신고서!C35 -> 0 | E134: =신고서!F35 -> 0 | K134: =신고서!L35 -> 0 | Q134: =신고서!R35 -> 0 | S134: =신고서!U35 -> 0 | U134: 국세청 | X134: =신고서!AB35 -> 0 | Z134: =신고서!AD35 -> 0 | AB134: =신고서!AF35 -> 0 | AD134: =신고서!AH35 -> 0 | AF134: =신고서!AJ35 -> 0 | AH134: =신고서!AL35 -> 0 | AJ134: =신고서!AN35 -> 0 | AM134: =신고서!AP35 -> 0 | AO134: =신고서!AR35 -> 0 | AQ134: =신고서!AT35 -> 0
B135: =신고서!C36 -> 0 | E135: =신고서!F36 -> 0 | K135: =신고서!L36 -> 0 | N135: =신고서!O36 -> 0 | Q135: =신고서!R36 -> 0 | S135: =신고서!U36 -> 0 | U135: 기타 | X135: =신고서!AB36 -> 0 | Z135: =신고서!AD36 -> 0 | AB135: =신고서!AF36 -> 0 | AD135: =신고서!AH36 -> 0 | AF135: =신고서!AJ36 -> 0 | AH135: =신고서!AL36 -> 0 | AJ135: =신고서!AN36 -> 0 | AM135: =신고서!AP36 -> 0 | AO135: =신고서!AR36 -> 0 | AQ135: =신고서!AT36 -> 0
B136: =신고서!C37 -> 0 | E136: =신고서!F37 -> 0 | K136: =신고서!L37 -> 0 | Q136: =신고서!R37 -> 0 | S136: =신고서!U37 -> 0 | U136: 국세청 | X136: =신고서!AB37 -> 0 | Z136: =신고서!AD37 -> 0 | AB136: =신고서!AF37 -> 0 | AD136: =신고서!AH37 -> 0 | AF136: =신고서!AJ37 -> 0 | AH136: =신고서!AL37 -> 0 | AJ136: =신고서!AN37 -> 0 | AM136: =신고서!AP37 -> 0 | AO136: =신고서!AR37 -> 0 | AQ136: =신고서!AT37 -> 0
B137: =신고서!C38 -> 0 | E137: =신고서!F38 -> 0 | K137: =신고서!L38 -> 0 | N137: =신고서!O38 -> 0 | Q137: =신고서!R38 -> 0 | S137: =신고서!U38 -> 0 | U137: 기타 | X137: =신고서!AB38 -> 0 | Z137: =신고서!AD38 -> 0 | AB137: =신고서!AF38 -> 0 | AD137: =신고서!AH38 -> 0 | AF137: =신고서!AJ38 -> 0 | AH137: =신고서!AL38 -> 0 | AJ137: =신고서!AN38 -> 0 | AM137: =신고서!AP38 -> 0 | AO137: =신고서!AR38 -> 0 | AQ137: =신고서!AT38 -> 0
B138: 각종 소득공제ㆍ세액공제 항목
B139: 자료 구분 | E139: 신용카드등 사용액공제 | AO139: 기부금
E140: 신용카드 | K140: 직불카드등 | Q140: 현금영수증 | W140: 도서공연등사용분 (총급여 7천만원 이하자만 기재) | AC140: 전통시장사용분 | AI140: 대중교통
B142: 국세청계 | E142: =신고서!F43 -> 12000000 | K142: =신고서!L43 -> 0 | Q142: =신고서!R43 -> 4500000 | W142: =신고서!X43 -> 0 | AC142: =신고서!AD43 -> 0 | AI142: =신고서!AK43 -> 1200000 | AO142: =신고서!AR43 -> 0
B143: 기타계 | E143: =신고서!F44 -> 0 | K143: =신고서!L44 -> 0 | Q143: =신고서!R44 -> 0 | W143: =신고서!X44 -> 0 | AC143: =신고서!AD44 -> 0 | AI143: =신고서!AK44 -> 0 | AO143: =신고서!AR44 -> 0
B144: 국세청 | E144: =신고서!F45 -> 12000000 | K144: =신고서!L45 -> 0 | Q144: =신고서!R45 -> 4500000 | W144: =신고서!X45 -> 0 | AC144: =신고서!AD45 -> 0 | AI144: =신고서!AK45 -> 1200000 | AO144: =신고서!AR45 -> 0
B145: 기타 | E145: =신고서!F46 -> 0 | K145: =신고서!L46 -> 0 | Q145: =신고서!R46 -> 0 | W145: =신고서!X46 -> 0 | AC145: =신고서!AD46 -> 0 | AI145: =신고서!AK46 -> 0 | AO145: =신고서!AR46 -> 0
B146: 국세청 | E146: =신고서!F47 -> 0 | K146: =신고서!L47 -> 0 | Q146: =신고서!R47 -> 0 | W146: =신고서!X47 -> 0 | AC146: =신고서!AD47 -> 0 | AI146: =신고서!AK47 -> 0 | AO146: =신고서!AR47 -> 0
B147: 기타 | E147: =신고서!F48 -> 0 | K147: =신고서!L48 -> 0 | Q147: =신고서!R48 -> 0 | W147: =신고서!X48 -> 0 | AC147: =신고서!AD48 -> 0 | AI147: =신고서!AK48 -> 0 | AO147: =신고서!AR48 -> 0
B148: 국세청 | E148: =신고서!F49 -> 0 | K148: =신고서!L49 -> 0 | Q148: =신고서!R49 -> 0 | W148: =신고서!X49 -> 0 | AC148: =신고서!AD49 -> 0 | AI148: =신고서!AK49 -> 0 | AO148: =신고서!AR49 -> 0
B149: 기타 | E149: =신고서!F50 -> 0 | K149: =신고서!L50 -> 0 | Q149: =신고서!R50 -> 0 | W149: =신고서!X50 -> 0 | AC149: =신고서!AD50 -> 0 | AI149: =신고서!AK50 -> 0 | AO149: =신고서!AR50 -> 0
B150: 국세청 | E150: =신고서!F51 -> 0 | K150: =신고서!L51 -> 0 | Q150: =신고서!R51 -> 0 | W150: =신고서!X51 -> 0 | AC150: =신고서!AD51 -> 0 | AI150: =신고서!AK51 -> 0 | AO150: =신고서!AR51 -> 0
B151: 기타 | E151: =신고서!F52 -> 0 | K151: =신고서!L52 -> 0 | Q151: =신고서!R52 -> 0 | W151: =신고서!X52 -> 0 | AC151: =신고서!AD52 -> 0 | AI151: =신고서!AK52 -> 0 | AO151: =신고서!AR52 -> 0
B152: 국세청 | E152: =신고서!F53 -> 0 | K152: =신고서!L53 -> 0 | Q152: =신고서!R53 -> 0 | W152: =신고서!X53 -> 0 | AC152: =신고서!AD53 -> 0 | AI152: =신고서!AK53 -> 0 | AO152: =신고서!AR53 -> 0
B153: 기타 | E153: =신고서!F54 -> 0 | K153: =신고서!L54 -> 0 | Q153: =신고서!R54 -> 0 | W153: =신고서!X54 -> 0 | AC153: =신고서!AD54 -> 0 | AI153: =신고서!AK54 -> 0 | AO153: =신고서!AR54 -> 0
B154: 국세청 | E154: =신고서!F55 -> 0 | K154: =신고서!L55 -> 0 | Q154: =신고서!R55 -> 0 | W154: =신고서!X55 -> 0 | AC154: =신고서!AD55 -> 0 | AI154: =신고서!AK55 -> 0 | AO154: =신고서!AR55 -> 0
B155: 기타 | E155: =신고서!F56 -> 0 | K155: =신고서!L56 -> 0 | Q155: =신고서!R56 -> 0 | W155: =신고서!X56 -> 0 | AC155: =신고서!AD56 -> 0 | AI155: =신고서!AK56 -> 0 | AO155: =신고서!AR56 -> 0
B156: 국세청 | E156: =신고서!F57 -> 0 | K156: =신고서!L57 -> 0 | Q156: =신고서!R57 -> 0 | W156: =신고서!X57 -> 0 | AC156: =신고서!AD57 -> 0 | AI156: =신고서!AK57 -> 0 | AO156: =신고서!AR57 -> 0
B157: 기타 | E157: =신고서!F58 -> 0 | K157: =신고서!L58 -> 0 | Q157: =신고서!R58 -> 0 | W157: =신고서!X58 -> 0 | AC157: =신고서!AD58 -> 0 | AI157: =신고서!AK58 -> 0 | AO157: =신고서!AR58 -> 0
B158: 국세청 | E158: =신고서!F59 -> 0 | K158: =신고서!L59 -> 0 | Q158: =신고서!R59 -> 0 | W158: =신고서!X59 -> 0 | AC158: =신고서!AD59 -> 0 | AI158: =신고서!AK59 -> 0 | AO158: =신고서!AR59 -> 0
B159: 기타 | E159: =신고서!F60 -> 0 | K159: =신고서!L60 -> 0 | Q159: =신고서!R60 -> 0 | W159: =신고서!X60 -> 0 | AC159: =신고서!AD60 -> 0 | AI159: =신고서!AK60 -> 0 | AO159: =신고서!AR60 -> 0
B160: 국세청 | E160: =신고서!F61 -> 0 | K160: =신고서!L61 -> 0 | Q160: =신고서!R61 -> 0 | W160: =신고서!X61 -> 0 | AC160: =신고서!AD61 -> 0 | AI160: =신고서!AK61 -> 0 | AO160: =신고서!AR61 -> 0
B161: 기타 | E161: =신고서!F62 -> 0 | K161: =신고서!L62 -> 0 | Q161: =신고서!R62 -> 0 | W161: =신고서!X62 -> 0 | AC161: =신고서!AD62 -> 0 | AI161: =신고서!AK62 -> 0 | AO161: =신고서!AR62 -> 0
B162: 국세청 | E162: =신고서!F63 -> 0 | K162: =신고서!L63 -> 0 | Q162: =신고서!R63 -> 0 | W162: =신고서!X63 -> 0 | AC162: =신고서!AD63 -> 0 | AI162: =신고서!AK63 -> 0 | AO162: =신고서!AR63 -> 0
B163: 기타 | E163: =신고서!F64 -> 0 | K163: =신고서!L64 -> 0 | Q163: =신고서!R64 -> 0 | W163: =신고서!X64 -> 0 | AC163: =신고서!AD64 -> 0 | AI163: =신고서!AK64 -> 0 | AO163: =신고서!AR64 -> 0
AR164: 210㎜×297㎜

Sheet 징수부
B2: ■ 소득세법 시행규칙 [별지 제25호서식(1)] <개정 2014.3.14> | Q2: (3쪽 중 제1쪽)
F3: 소 득 자 별 근 로 소 득 원 천 징 수 부
C4: ①귀속연도 | E4: =기본사항!G10 -> 2019
B6: 징수의무자 | E6: ②법 인 명(상호) | H6: =기본사항!G14 -> (주)조세통람
E7: ③사업자등록번호 | H7: =기본사항!G16 -> 203-81-11111
B8: ④ 근무처
B9: 소 득 자 | E9: ⑤성 명 | H9: =기본사항!G7 -> 이영화 | J9: ⑥주민등록번호 | L9: =기본사항!G8 -> 123456-1234567 | O9: ⑦입사일 퇴사일
E11: ⑧ 내외국인 구분 | H11: 내국인1/외국인9 | J11: ⑨ 국적 | O11: (국적코드 : )
E12: ⑩ 공제대상가족의 수(본인․배우자를 각각 1인으로 봄) | L12: =인적공제!G17 -> 5
E13: ⑪ 20세 이하 자녀의 수 | L13: =인적공제!O7 -> 3
E14: ⑫ 감면 적용 여부 | H14: 여 1, 부 2 | J14: ⑬ 감면규정 | N14: ⑭ 감면기간 | P14: ~
B15: Ⅰ. 근 로 소 득 지 급 명 세
B16: 월별 | C16: (15)지급연월 | E16: 1. 총 급 여 | M16: 2. 징수세액
E17: (16)급여 | F17: (17)상여 | G17: (18)인정상여 | H17: (19)주식매수선택권행사이익 | I17: (20)우리사주조합인출금 | J17: (21)임원퇴직소득금액 한도초과액 | K17: (22)~(29) | L17: (30)계 | M17: 간이세액표 적용 대상 | O17: 그 외 | P17: (34)소득세계 (32)+(33) | Q17: (35)지방 소득세
M18: (31)급여구간 | N18: (32)소득세 | O18: (33)소득세
B19: 1 | C19: =급여내역!E8 -> 0 | E19: =급여내역!H8 -> 2100000 | F19: =급여내역!M8 -> 0 | G19: =급여내역!Q8 -> 0 | H19: =급여내역!U8 -> 0 | I19: =급여내역!V8 -> 0 | J19: =급여내역!X8 -> 0 | L19: =SUM(E19:K19) -> 2100000 | N19: =급여내역!AC8 -> 22740 | P19: =N19+O19 -> 22740 | Q19: =P19*0.1 -> 2274
B20: 2 | C20: =급여내역!E9 -> 0 | E20: =급여내역!H9 -> 2100000 | F20: =급여내역!M9 -> 0 | G20: =급여내역!Q9 -> 0 | H20: =급여내역!U9 -> 0 | I20: =급여내역!V9 -> 0 | J20: =급여내역!X9 -> 0 | L20: =SUM(E20:K20) -> 2100000 | N20: =급여내역!AC9 -> 22740 | P20: =N20+O20 -> 22740 | Q20: =P20*0.1 -> 2274
B21: 3 | C21: =급여내역!E10 -> 0 | E21: =급여내역!H10 -> 2100000 | F21: =급여내역!M10 -> 0 | G21: =급여내역!Q10 -> 0 | H21: =급여내역!U10 -> 0 | I21: =급여내역!V10 -> 0 | J21: =급여내역!X10 -> 0 | L21: 2100000 | N21: =급여내역!AC10 -> 22740 | P21: 22740 | Q21: 2274
B22: 4 | C22: =급여내역!E11 -> 0 | E22: =급여내역!H11 -> 2100000 | F22: =급여내역!M11 -> 0 | G22: =급여내역!Q11 -> 0 | H22: =급여내역!U11 -> 0 | I22: =급여내역!V11 -> 0 | J22: =급여내역!X11 -> 0 | L22: 2100000 | N22: =급여내역!AC11 -> 22740 | P22: 22740 | Q22: 2274
B23: 5 | C23: =급여내역!E12 -> 0 | E23: =급여내역!H12 -> 2100000 | F23: =급여내역!M12 -> 0 | G23: =급여내역!Q12 -> 0 | H23: =급여내역!U12 -> 0 | I23: =급여내역!V12 -> 0 | J23: =급여내역!X12 -> 0 | L23: 2100000 | N23: =급여내역!AC12 -> 22740 | P23: 22740 | Q23: 2274
B24: 6 | C24: =급여내역!E13 -> 0 | E24: =급여내역!H13 -> 2100000 | F24: =급여내역!M13 -> 0 | G24: =급여내역!Q13 -> 0 | H24: =급여내역!U13 -> 0 | I24: =급여내역!V13 -> 0 | J24: =급여내역!X13 -> 0 | L24: 2100000 | N24: =급여내역!AC13 -> 22740 | P24: 22740 | Q24: 2274
B25: 7 | C25: =급여내역!E14 -> 0 | E25: =급여내역!H14 -> 2100000 | F25: =급여내역!M14 -> 0 | G25: =급여내역!Q14 -> 0 | H25: =급여내역!U14 -> 0 | I25: =급여내역!V14 -> 0 | J25: =급여내역!X14 -> 0 | L25: 2100000 | N25: =급여내역!AC14 -> 22740 | P25: 22740 | Q25: 2274
B26: 8 | C26: =급여내역!E15 -> 0 | E26: =급여내역!H15 -> 2100000 | F26: =급여내역!M15 -> 0 | G26: =급여내역!Q15 -> 0 | H26: =급여내역!U15 -> 0 | I26: =급여내역!V15 -> 0 | J26: =급여내역!X15 -> 0 | L26: 2100000 | N26: =급여내역!AC15 -> 22740 | P26: 22740 | Q26: 2274
B27: 9 | C27: =급여내역!E16 -> 0 | E27: =급여내역!H16 -> 2100000 | F27: =급여내역!M16 -> 0 | G27: =급여내역!Q16 -> 0 | H27: =급여내역!U16 -> 0 | I27: =급여내역!V16 -> 0 | J27: =급여내역!X16 -> 0 | L27: 2100000 | N27: =급여내역!AC16 -> 22740 | P27: 22740 | Q27: 2274
B28: 10 | C28: =급여내역!E17 -> 0 | E28: =급여내역!H17 -> 2100000 | F28: =급여내역!M17 -> 0 | G28: =급여내역!Q17 -> 0 | H28: =급여내역!U17 -> 0 | I28: =급여내역!V17 -> 0 | J28: =급여내역!X17 -> 0 | L28: 2100000 | N28: =급여내역!AC17 -> 22740 | P28: 22740 | Q28: 2274
B29: 11 | C29: =급여내역!E18 -> 0 | E29: =급여내역!H18 -> 2100000 | F29: =급여내역!M18 -> 0 | G29: =급여내역!Q18 -> 0 | H29: =급여내역!U18 -> 0 | I29: =급여내역!V18 -> 0 | J29: =급여내역!X18 -> 0 | L29: 2100000 | N29: =급여내역!AC18 -> 22740 | P29: 22740 | Q29: 2274
B30: 12 | C30: =급여내역!E19 -> 0 | E30: =급여내역!H19 -> 2100000 | F30: =급여내역!M19 -> 0 | G30: =급여내역!Q19 -> 0 | H30: =급여내역!U19 -> 0 | I30: =급여내역!V19 -> 0 | J30: =급여내역!X19 -> 0 | L30: 2100000 | N30: =급여내역!AC19 -> 22740 | P30: 22740 | Q30: 2274
B31: 계 | E31: =SUM(E19:E30) -> 25200000 | F31: 0 | G31: 0 | H31: 0 | I31: 0 | J31: 0 | K31: 0 | L31: 25200000 | N31: =SUM(N19:N30) -> 272880 | O31: =SUM(O19:O30) -> 0 | P31: =SUM(P19:P30) -> 272880 | Q31: =SUM(Q19:Q30) -> 27288
Q32: 297㎜×210㎜
Q34: (3쪽 중 제2쪽)
B35: Ⅱ. 비 과 세 소 득
B36: ※소득세법 시행규칙 제24호 서식(1) 근로소득원천징수영수증(5쪽) 비과세 및 감면소득 코드 참조
B37: 월별 | C37: 1. 지급명세서 작성 대상 비과세 소득 | N37: 2. 지급명세서 작성 제외대상 비과세 소득 ※해당 원천징수의무자가 지급한 소득을 적음
C38: (15)지급연월 | E38: 국외근로소득 (코드 : ) | H38: (39)야간근로 수당 등 (O01) | I38: (40)출산˙ 보육수당 (Q01) | J38: (41)～(49) (코드 : ) | K38: (50)합계 (38+～+49) | N38: (51)일직료 등 (H02) | O38: (52)자가운전보조금 (H03) | P38: (53)～(59) | Q38: (60)합계 (51+～+59)
E39: (36)외화 | F39: (37)환율 | G39: (38)원화
B40: 1 | C40: =급여내역!AX8 -> 0 | G40: =급여내역!BB8 -> 0 | H40: =급여내역!BK8 -> 0 | I40: =급여내역!BO8 -> 0 | J40: =급여내역!BP8 -> 0 | K40: =SUM(G40:J40) -> 0 | Q40: =SUM(N40:P40) -> 0
B41: 2 | C41: =급여내역!AX9 -> 0 | G41: =급여내역!BB9 -> 0 | H41: =급여내역!BK9 -> 0 | I41: =급여내역!BO9 -> 0 | J41: =급여내역!BP9 -> 0 | K41: =SUM(G41:J41) -> 0 | Q41: =SUM(N41:P41) -> 0
B42: 3 | C42: =급여내역!AX10 -> 0 | G42: =급여내역!BB10 -> 0 | H42: =급여내역!BK10 -> 0 | I42: =급여내역!BO10 -> 0 | J42: =급여내역!BP10 -> 0 | K42: 0 | Q42: 0
B43: 4 | C43: =급여내역!AX11 -> 0 | G43: =급여내역!BB11 -> 0 | H43: =급여내역!BK11 -> 0 | I43: =급여내역!BO11 -> 0 | J43: =급여내역!BP11 -> 0 | K43: 0 | Q43: 0
B44: 5 | C44: =급여내역!AX12 -> 0 | G44: =급여내역!BB12 -> 0 | H44: =급여내역!BK12 -> 0 | I44: =급여내역!BO12 -> 0 | J44: =급여내역!BP12 -> 0 | K44: 0 | Q44: 0
B45: 6 | C45: =급여내역!AX13 -> 0 | G45: =급여내역!BB13 -> 0 | H45: =급여내역!BK13 -> 0 | I45: =급여내역!BO13 -> 0 | J45: =급여내역!BP13 -> 0 | K45: 0 | Q45: 0
B46: 7 | C46: =급여내역!AX14 -> 0 | G46: =급여내역!BB14 -> 0 | H46: =급여내역!BK14 -> 0 | I46: =급여내역!BO14 -> 0 | J46: =급여내역!BP14 -> 0 | K46: 0 | Q46: 0
B47: 8 | C47: =급여내역!AX15 -> 0 | G47: =급여내역!BB15 -> 0 | H47: =급여내역!BK15 -> 0 | I47: =급여내역!BO15 -> 0 | J47: =급여내역!BP15 -> 0 | K47: 0 | Q47: 0
B48: 9 | C48: =급여내역!AX16 -> 0 | G48: =급여내역!BB16 -> 0 | H48: =급여내역!BK16 -> 0 | I48: =급여내역!BO16 -> 0 | J48: =급여내역!BP16 -> 0 | K48: 0 | Q48: 0
B49: 10 | C49: =급여내역!AX17 -> 0 | G49: =급여내역!BB17 -> 0 | H49: =급여내역!BK17 -> 0 | I49: =급여내역!BO17 -> 0 | J49: =급여내역!BP17 -> 0 | K49: 0 | Q49: 0
B50: 11 | C50: =급여내역!AX18 -> 0 | G50: =급여내역!BB18 -> 0 | H50: =급여내역!BK18 -> 0 | I50: =급여내역!BO18 -> 0 | J50: =급여내역!BP18 -> 0 | K50: 0 | Q50: 0
B51: 12 | C51: =급여내역!AX19 -> 0 | G51: =급여내역!BB19 -> 0 | H51: =급여내역!BK19 -> 0 | I51: =급여내역!BO19 -> 0 | J51: =급여내역!BP19 -> 0 | K51: 0 | Q51: 0
B52: 계 | F52: =SUM(F40:F51) -> 0 | G52: =SUM(G40:G51) -> 0 | H52: =SUM(H40:H51) -> 0 | I52: 0 | J52: 0 | K52: 0 | N52: 0 | O52: 0 | P52: =SUM(P40:P51) -> 0 | Q52: =SUM(Q40:Q51) -> 0
Q53: 297㎜×210㎜
Q54: (3쪽 중 제3쪽)
B55: Ⅲ. 근 로 소 득 원 천 징 수 액 등
B56: 월별 | C56: 1.감면세액 | F56: (63)납세조합 공제세액 | G56: 2. 차 감 원 천 징 수 액 | K56: 3. 징수의무자 자체 증빙 지출액(소득공제)
C57: (61)감면소득 | E57: (62)감면세액 | G57: (64)소득세 | H57: (65)지방소득세 | I57: (66)농어촌특별세 | J57: (67)외국납부세액 | K57: (68)연금보험 | L57: (69)건강보험 | M57: (70)고용보험 | N57: (71)기부금 | P57: (72)비고
B58: 1 | E58: =급여내역!AI8 -> 0 | G58: =급여내역!AL8 -> 22740 | H58: =급여내역!AP8 -> 2270 | I58: =급여내역!AT8 -> 0 | K58: =급여내역!CA8 -> 94500 | L58: =급여내역!CB8+급여내역!CD8 -> 73600 | M58: =급여내역!CC8 -> 16800
B59: 2 | E59: =급여내역!AI9 -> 0 | G59: =급여내역!AL9 -> 22740 | H59: =급여내역!AP9 -> 2270 | I59: =급여내역!AT9 -> 0 | K59: =급여내역!CA9 -> 94500 | L59: =급여내역!CB9+급여내역!CD9 -> 73600 | M59: =급여내역!CC9 -> 16800
B60: 3 | E60: =급여내역!AI10 -> 0 | G60: =급여내역!AL10 -> 22740 | H60: =급여내역!AP10 -> 2270 | I60: =급여내역!AT10 -> 0 | K60: =급여내역!CA10 -> 94500 | L60: =급여내역!CB10+급여내역!CD10 -> 73600 | M60: =급여내역!CC10 -> 16800
B61: 4 | E61: =급여내역!AI11 -> 0 | G61: =급여내역!AL11 -> 22740 | H61: =급여내역!AP11 -> 2270 | I61: =급여내역!AT11 -> 0 | K61: =급여내역!CA11 -> 94500 | L61: =급여내역!CB11+급여내역!CD11 -> 73600 | M61: =급여내역!CC11 -> 16800
B62: 5 | E62: =급여내역!AI12 -> 0 | G62: =급여내역!AL12 -> 22740 | H62: =급여내역!AP12 -> 2270 | I62: =급여내역!AT12 -> 0 | K62: =급여내역!CA12 -> 94500 | L62: =급여내역!CB12+급여내역!CD12 -> 73600 | M62: =급여내역!CC12 -> 16800
B63: 6 | E63: =급여내역!AI13 -> 0 | G63: =급여내역!AL13 -> 22740 | H63: =급여내역!AP13 -> 2270 | I63: =급여내역!AT13 -> 0 | K63: =급여내역!CA13 -> 94500 | L63: =급여내역!CB13+급여내역!CD13 -> 73600 | M63: =급여내역!CC13 -> 16800
B64: 7 | E64: =급여내역!AI14 -> 0 | G64: =급여내역!AL14 -> 22740 | H64: =급여내역!AP14 -> 2270 | I64: =급여내역!AT14 -> 0 | K64: =급여내역!CA14 -> 94500 | L64: =급여내역!CB14+급여내역!CD14 -> 73600 | M64: =급여내역!CC14 -> 16800
B65: 8 | E65: =급여내역!AI15 -> 0 | G65: =급여내역!AL15 -> 22740 | H65: =급여내역!AP15 -> 2270 | I65: =급여내역!AT15 -> 0 | K65: =급여내역!CA15 -> 94500 | L65: =급여내역!CB15+급여내역!CD15 -> 73600 | M65: =급여내역!CC15 -> 16800
B66: 9 | E66: =급여내역!AI16 -> 0 | G66: =급여내역!AL16 -> 22740 | H66: =급여내역!AP16 -> 2270 | I66: =급여내역!AT16 -> 0 | K66: =급여내역!CA16 -> 94500 | L66: =급여내역!CB16+급여내역!CD16 -> 73600 | M66: =급여내역!CC16 -> 16800
B67: 10 | E67: =급여내역!AI17 -> 0 | G67: =급여내역!AL17 -> 22740 | H67: =급여내역!AP17 -> 2270 | I67: =급여내역!AT17 -> 0 | K67: =급여내역!CA17 -> 94500 | L67: =급여내역!CB17+급여내역!CD17 -> 73600 | M67: =급여내역!CC17 -> 16800
B68: 11 | E68: =급여내역!AI18 -> 0 | G68: =급여내역!AL18 -> 22740 | H68: =급여내역!AP18 -> 2270 | I68: =급여내역!AT18 -> 0 | K68: =급여내역!CA18 -> 94500 | L68: =급여내역!CB18+급여내역!CD18 -> 73600 | M68: =급여내역!CC18 -> 16800
B69: 12 | E69: =급여내역!AI19 -> 0 | G69: =급여내역!AL19 -> 22740 | H69: =급여내역!AP19 -> 2270 | I69: =급여내역!AT19 -> 0 | K69: =급여내역!CA19 -> 94500 | L69: =급여내역!CB19+급여내역!CD19 -> 73600 | M69: =급여내역!CC19 -> 16800
B70: 계 | C70: =SUM(C58:D69) -> 0 | E70: =SUM(E58:E69) -> 0 | F70: 0 | G70: 272880 | H70: 27240 | I70: 0 | J70: 0 | K70: 1134000 | L70: 883200 | M70: 201600
B71: 작성일자: | G71: =기본사항!G19 -> 2020-02-28 | I71: 징수의무자: | K71: =기본사항!G15 -> 김철수 | N71: (서명 또는 인)
B72: ※ (72)비고란에는 (71)기부금에 해당하는 기부금유형 및 코드를 적습니다.
Q73: 297㎜×210㎜

Sheet 사용가이드
